{"text_format":"1","workbook":"xlsx","n_sheets":4,"sheets":["申請書","様式第６号の３(1)　（裏面）","添付","産業分類マッピング表"],"not_rendered":{"charts":0,"images":3,"macros":1,"external_links":0,"defined_names":2,"comments":0,"pivot_tables":0},"unopened":[],"bounds":{"document_bytes":16777216,"sheet_cells":100000,"rows_first":2000,"rows_last":500,"rows_between":2000,"halvings":0,"cell_chars":16384,"cell_head_chars":4096},"cells_cut":0,"cells_raw":0,"read":"whole","date_system":"1900"}

{"sheet":"申請書","index":0,"n_rows":177,"n_cols":134,"rows_kept":177,"cut":false,"hidden":false,"merged":[[61,57,61,63],[56,57,56,63],[45,87,45,88],[45,91,45,92],[55,57,55,63],[56,12,56,18],[89,2,89,10],[89,11,90,18],[89,19,90,19],[90,2,90,10],[85,39,85,45],[85,48,85,54],[87,21,87,27],[88,2,88,10],[88,12,88,18],[88,57,88,63],[87,2,87,10],[87,12,87,18],[86,48,86,54],[86,57,86,63],[87,30,87,36],[87,39,87,45],[87,48,87,54],[88,21,88,27],[161,12,161,19],[161,22,161,29],[161,33,161,41],[161,44,161,52],[161,56,161,63],[161,53,161,54],[45,93,45,94],[83,12,83,18],[83,21,83,27],[83,30,83,36],[83,39,83,45],[83,48,83,54],[83,57,83,63],[84,12,84,18],[84,21,84,27],[84,30,84,36],[84,39,84,45],[84,48,84,54],[84,57,84,63],[45,83,45,84],[45,85,45,86],[74,57,74,63],[73,57,73,63],[62,57,62,63],[88,39,88,45],[88,48,88,54],[85,57,85,63],[86,3,86,10],[86,12,86,18],[86,21,86,27],[86,30,86,36],[86,39,86,45],[87,57,87,63],[85,3,85,10],[85,12,85,18],[85,21,85,27],[85,30,85,36],[88,30,88,36],[81,3,82,10],[81,12,81,18],[81,21,81,27],[81,30,81,36],[81,39,81,45],[81,48,81,54],[81,57,81,63],[82,12,82,18],[82,21,82,27],[82,30,82,36],[82,39,82,45],[82,48,82,54],[82,57,82,63],[79,3,80,10],[79,12,79,18],[79,21,79,27],[79,30,79,36],[79,39,79,45],[79,48,79,54],[79,57,79,63],[80,12,80,18],[80,21,80,27],[80,30,80,36],[80,39,80,45],[80,48,80,54],[80,57,80,63],[78,3,78,10],[78,12,78,18],[78,21,78,27],[78,30,78,36],[78,39,78,45],[78,48,78,54],[78,57,78,63],[77,3,77,10],[77,12,77,18],[77,57,77,63],[73,3,74,10],[73,12,73,18],[73,21,73,27],[73,30,73,36],[73,39,73,45],[73,48,73,54],[77,21,77,27],[77,30,77,36],[77,39,77,45],[77,48,77,54],[74,12,74,18],[74,21,74,27],[74,30,74,36],[74,39,74,45],[74,48,74,54],[71,3,72,10],[71,12,71,18],[71,21,71,27],[71,30,71,36],[71,39,71,45],[71,48,71,54],[71,57,71,63],[72,12,72,18],[72,21,72,27],[72,30,72,36],[72,39,72,45],[72,48,72,54],[72,57,72,63],[69,3,70,10],[69,12,69,18],[69,21,69,27],[69,30,69,36],[69,39,69,45],[69,48,69,54],[69,57,69,63],[70,12,70,18],[70,21,70,27],[70,30,70,36],[70,39,70,45],[70,48,70,54],[70,57,70,63],[66,57,66,63],[65,3,65,10],[65,12,65,18],[65,57,65,63],[67,3,68,10],[67,12,67,18],[67,21,67,27],[67,30,67,36],[67,39,67,45],[67,48,67,54],[67,57,67,63],[68,12,68,18],[68,21,68,27],[68,30,68,36],[68,39,68,45],[68,48,68,54],[68,57,68,63],[61,3,62,10],[61,12,61,18],[61,21,61,27],[61,30,61,36],[61,39,61,45],[61,48,61,54],[65,21,65,27],[65,30,65,36],[65,39,65,45],[65,48,65,54],[62,12,62,18],[62,21,62,27],[62,30,62,36],[62,39,62,45],[62,48,62,54],[63,3,64,10],[63,12,63,18],[63,21,63,27],[63,30,63,36],[63,39,63,45],[63,48,63,54],[57,57,57,63],[58,12,58,18],[58,21,58,27],[58,30,58,36],[58,39,58,45],[58,48,58,54],[58,57,58,63],[59,3,60,10],[59,12,59,18],[59,21,59,27],[59,30,59,36],[59,39,59,45],[59,48,59,54],[59,57,59,63],[60,12,60,18],[60,21,60,27],[60,30,60,36],[60,39,60,45],[60,48,60,54],[60,57,60,63],[55,21,55,27],[55,30,55,36],[55,39,55,45],[55,48,55,54],[56,48,56,54],[57,3,58,10],[57,12,57,18],[57,21,57,27],[57,30,57,36],[57,39,57,45],[57,48,57,54],[56,21,56,27],[56,30,56,36],[56,39,56,45],[0,15,0,21],[1,15,1,21],[4,15,6,47],[4,52,4,64],[7,52,7,54],[7,55,7,56],[7,57,7,64],[8,25,16,29],[5,11,6,11],[8,61,10,64],[8,30,8,32],[8,34,8,37],[8,39,8,43],[8,45,8,47],[9,30,15,47],[11,48,13,60],[8,48,10,52],[8,53,10,56],[8,57,10,60],[16,33,16,36],[16,38,16,41],[10,6,12,24],[5,1,6,3],[5,4,6,4],[5,5,6,9],[5,10,6,10],[8,2,9,5],[8,6,9,24],[20,2,22,5],[20,6,22,24],[13,2,13,5],[13,6,13,24],[14,2,15,5],[14,6,15,24],[18,2,19,5],[18,6,19,24],[17,2,17,5],[17,6,17,20],[17,21,17,64],[8,1,17,1],[16,43,16,46],[16,48,16,60],[11,61,16,64],[14,48,14,60],[15,48,15,60],[10,2,12,5],[16,2,16,5],[16,6,16,24],[16,30,16,32],[18,53,20,56],[19,30,25,47],[18,39,18,43],[18,45,18,47],[23,2,23,5],[23,6,23,24],[24,2,26,5],[26,43,26,46],[26,48,26,60],[24,6,26,24],[18,25,26,29],[21,48,23,60],[24,48,24,60],[25,48,25,60],[26,30,26,32],[26,33,26,36],[26,38,26,41],[45,73,45,74],[45,75,45,76],[29,29,29,30],[42,2,45,10],[42,20,45,28],[42,29,45,37],[42,38,45,46],[38,29,41,37],[38,38,41,46],[29,2,29,10],[29,11,46,19],[29,20,29,21],[30,47,33,55],[30,56,33,64],[29,59,29,62],[29,32,29,35],[29,38,29,39],[29,41,29,44],[29,47,29,48],[38,2,41,10],[38,20,41,28],[46,47,46,54],[46,56,46,63],[45,69,45,70],[51,3,51,10],[51,12,51,18],[18,48,20,52],[18,57,20,60],[18,30,18,32],[18,34,18,37],[38,47,41,55],[38,56,41,64],[27,2,27,5],[27,6,27,20],[27,21,27,64],[49,39,49,45],[51,21,51,27],[51,30,51,36],[51,39,51,45],[97,1,97,64],[28,1,90,1],[29,56,29,57],[91,1,91,64],[51,57,51,63],[49,3,49,10],[49,12,49,18],[49,21,49,27],[49,30,49,36],[93,1,93,10],[93,12,93,18],[51,48,51,54],[52,21,52,27],[52,30,52,36],[52,39,52,45],[52,48,52,54],[52,57,52,63],[28,20,28,64],[55,3,56,10],[55,12,55,18],[93,21,93,27],[93,30,93,36],[93,39,93,45],[93,48,93,54],[115,2,118,10],[126,3,126,10],[119,2,122,10],[123,2,123,10],[45,79,45,80],[45,81,45,82],[46,2,46,10],[46,20,46,27],[49,48,49,54],[50,48,50,54],[50,57,50,63],[52,3,52,10],[52,12,52,18],[49,57,49,63],[50,3,50,10],[50,12,50,18],[50,21,50,27],[50,30,50,36],[50,39,50,45],[45,71,45,72],[46,29,46,36],[46,38,46,45],[42,47,45,55],[42,56,45,64],[127,3,127,10],[127,12,127,19],[127,22,127,29],[127,30,127,31],[127,33,127,41],[127,44,127,52],[127,53,127,54],[127,56,127,63],[128,12,128,19],[128,22,128,29],[128,30,128,31],[128,33,128,41],[128,44,128,52],[128,53,128,54],[128,56,128,63],[139,56,139,63],[136,3,137,10],[135,12,135,19],[135,22,135,29],[135,33,135,41],[134,3,135,10],[132,3,133,10],[129,3,129,10],[128,3,128,10],[129,12,129,19],[129,22,129,29],[129,30,129,31],[129,33,129,41],[129,44,129,52],[129,53,129,54],[129,56,129,63],[134,12,134,19],[134,22,134,29],[134,30,134,31],[134,33,134,41],[134,44,134,52],[134,53,134,54],[134,56,134,63],[138,53,138,54],[146,3,147,10],[144,3,145,10],[143,3,143,10],[142,3,142,10],[138,3,139,10],[139,12,139,19],[139,22,139,29],[139,33,139,41],[139,44,139,52],[138,22,138,29],[138,30,138,31],[138,33,138,41],[138,44,138,52],[141,12,141,19],[141,22,141,29],[141,33,141,41],[141,44,141,52],[145,22,145,29],[145,33,145,41],[145,44,145,52],[140,3,141,10],[140,12,140,19],[140,22,140,29],[140,30,140,31],[154,3,154,10],[155,12,155,19],[155,22,155,29],[155,30,155,31],[155,44,155,52],[155,53,155,54],[155,56,155,63],[150,3,151,10],[148,3,149,10],[150,56,150,63],[149,12,149,19],[149,53,149,54],[152,3,153,10],[153,12,153,19],[153,22,153,29],[153,33,153,41],[153,44,153,52],[153,56,153,63],[154,12,154,19],[154,22,154,29],[154,30,154,31],[154,44,154,52],[154,53,154,54],[154,56,154,63],[172,2,172,10],[172,11,173,18],[172,19,173,19],[172,20,175,64],[173,2,173,10],[174,2,175,10],[174,11,175,18],[174,19,175,19],[165,2,165,10],[168,1,168,10],[166,1,166,64],[167,1,167,10],[170,1,170,10],[167,12,167,19],[167,22,167,29],[167,30,167,31],[167,33,167,41],[167,44,167,52],[167,53,167,54],[167,56,167,63],[168,12,168,19],[168,22,168,29],[105,1,165,1],[106,43,106,45],[18,1,27,1],[34,2,37,10],[34,20,37,28],[34,29,37,37],[34,38,37,46],[34,47,37,55],[34,56,37,64],[18,61,20,64],[92,1,92,10],[92,12,92,18],[92,21,92,27],[92,30,92,36],[92,39,92,45],[92,48,92,54],[92,57,92,63],[21,61,26,64],[29,50,29,53],[30,2,33,10],[30,20,33,28],[30,29,33,37],[30,38,33,46],[29,23,29,26],[28,2,28,10],[28,11,28,19],[93,57,93,63],[94,1,94,10],[94,12,94,18],[94,21,94,27],[94,30,94,36],[94,39,94,45],[94,48,94,54],[94,57,94,63],[95,21,95,27],[95,30,95,36],[95,39,95,45],[95,48,95,54],[95,57,95,63],[96,1,96,10],[96,12,96,18],[96,21,96,27],[96,30,96,36],[96,39,96,45],[96,48,96,54],[96,57,96,63],[171,1,171,10],[169,1,169,10],[111,2,114,10],[107,2,110,10],[106,19,106,20],[106,21,106,23],[106,25,106,28],[106,30,106,31],[106,36,106,38],[164,2,164,10],[163,3,163,10],[162,3,162,10],[162,12,162,19],[162,22,162,29],[162,30,162,31],[162,33,162,41],[163,12,163,19],[158,3,159,10],[158,12,158,19],[158,22,158,29],[158,30,158,31],[158,33,158,41],[156,3,157,10],[155,3,155,10],[76,48,76,54],[76,57,76,63],[101,15,103,47],[105,2,105,10],[105,11,105,64],[106,2,106,10],[106,11,106,12],[106,14,106,17],[106,40,106,42],[95,1,95,10],[95,12,95,18],[83,3,84,10],[89,20,89,46],[89,47,90,54],[89,55,90,55],[89,56,90,64],[90,20,90,46],[63,57,63,63],[64,12,64,18],[64,21,64,27],[64,30,64,36],[64,39,64,45],[64,48,64,54],[64,57,64,63],[75,3,76,10],[75,12,75,18],[75,21,75,27],[75,30,75,36],[75,39,75,45],[75,48,75,54],[75,57,75,63],[76,12,76,18],[76,21,76,27],[76,30,76,36],[76,39,76,45],[66,3,66,10],[66,12,66,18],[66,21,66,27],[66,30,66,36],[66,39,66,45],[66,48,66,54],[106,47,106,50],[106,52,106,54],[106,55,106,56],[106,58,106,61],[106,63,106,64],[107,11,110,20],[107,21,110,31],[107,32,110,42],[107,43,110,54],[107,55,110,64],[111,11,114,20],[111,21,114,31],[111,32,114,42],[111,43,114,54],[111,55,114,64],[115,11,118,20],[115,21,118,31],[115,32,118,42],[115,43,118,54],[115,55,118,64],[119,11,122,20],[119,21,122,31],[119,32,122,42],[119,43,122,54],[119,55,122,64],[123,11,123,19],[123,21,123,29],[123,30,123,31],[123,32,123,41],[123,53,123,54],[123,55,123,63],[123,43,123,52],[126,12,126,19],[126,22,126,29],[126,30,126,31],[126,33,126,41],[126,44,126,52],[126,53,126,54],[126,56,126,63],[133,12,133,19],[133,22,133,29],[133,33,133,41],[133,44,133,52],[133,56,133,63],[132,12,132,19],[132,22,132,29],[132,30,132,31],[132,33,132,41],[132,44,132,52],[132,53,132,54],[132,56,132,63],[141,56,141,63],[142,12,142,19],[142,22,142,29],[142,30,142,31],[142,44,142,52],[142,53,142,54],[142,56,142,63],[142,33,142,41],[141,53,141,54],[145,56,145,63],[146,12,146,19],[146,22,146,29],[146,30,146,31],[146,33,146,41],[146,44,146,52],[146,53,146,54],[146,56,146,63],[145,12,145,19],[145,53,145,54],[153,53,153,54],[149,22,149,29],[149,33,149,41],[149,44,149,52],[149,56,149,63],[150,12,150,19],[150,22,150,29],[150,30,150,31],[150,33,150,41],[150,44,150,52],[150,53,150,54],[151,44,151,52],[151,56,151,63],[152,12,152,19],[152,22,152,29],[152,30,152,31],[152,33,152,41],[152,44,152,52],[152,53,152,54],[152,56,152,63],[151,53,151,54],[140,33,140,41],[140,44,140,52],[140,53,140,54],[140,56,140,63],[137,53,137,54],[139,53,139,54],[133,53,133,54],[135,53,135,54],[137,12,137,19],[137,22,137,29],[137,33,137,41],[137,44,137,52],[137,56,137,63],[138,12,138,19],[138,56,138,63],[135,44,135,52],[135,56,135,63],[136,12,136,19],[136,22,136,29],[136,30,136,31],[136,33,136,41],[136,44,136,52],[136,53,136,54],[136,56,136,63],[143,12,143,19],[143,22,143,29],[143,30,143,31],[143,44,143,52],[143,53,143,54],[143,56,143,63],[144,12,144,19],[144,22,144,29],[144,30,144,31],[144,33,144,41],[144,44,144,52],[144,53,144,54],[144,56,144,63],[143,33,143,41],[147,12,147,19],[147,22,147,29],[147,33,147,41],[147,44,147,52],[147,56,147,63],[148,12,148,19],[148,22,148,29],[148,30,148,31],[148,33,148,41],[148,44,148,52],[148,53,148,54],[148,56,148,63],[147,53,147,54],[156,44,156,52],[156,53,156,54],[156,56,156,63],[157,12,157,19],[157,22,157,29],[157,33,157,41],[157,44,157,52],[157,56,157,63],[157,53,157,54],[164,30,164,31],[164,33,164,41],[164,44,164,52],[164,53,164,54],[164,56,164,63],[158,56,158,63],[159,12,159,19],[159,22,159,29],[159,33,159,41],[159,44,159,52],[159,56,159,63],[160,12,160,19],[160,22,160,29],[160,30,160,31],[160,33,160,41],[160,44,160,52],[160,53,160,54],[160,56,160,63],[159,53,159,54],[162,44,162,52],[162,53,162,54],[162,56,162,63],[158,44,158,52],[158,53,158,54],[160,3,161,10],[106,32,106,34],[145,30,145,31],[139,30,139,31],[141,30,141,31],[135,30,135,31],[137,30,137,31],[133,30,133,31],[147,30,147,31],[149,30,149,31],[153,30,153,31],[151,30,151,31],[161,30,161,31],[159,30,159,31],[157,30,157,31],[154,33,154,41],[155,33,155,41],[156,12,156,19],[156,22,156,29],[156,30,156,31],[156,33,156,41],[151,12,151,19],[151,22,151,29],[151,33,151,41],[171,12,171,19],[171,22,171,29],[171,30,171,31],[171,33,171,41],[171,44,171,52],[171,53,171,54],[171,56,171,63],[168,30,168,31],[168,33,168,41],[168,44,168,52],[168,53,168,54],[168,56,168,63],[169,12,169,19],[169,22,169,29],[169,30,169,31],[169,33,169,41],[169,44,169,52],[169,53,169,54],[169,56,169,63],[45,77,45,78],[45,89,45,90],[170,12,170,19],[170,22,170,29],[170,30,170,31],[170,33,170,41],[170,44,170,52],[170,53,170,54],[170,56,170,63],[165,12,165,19],[165,22,165,29],[165,30,165,31],[165,33,165,41],[165,44,165,52],[165,53,165,54],[165,56,165,63],[163,22,163,29],[163,30,163,31],[163,33,163,41],[163,44,163,52],[163,53,163,54],[163,56,163,63],[164,12,164,19],[164,22,164,29]]}
[null,null,null,null,null,null,null,null,null,null,null,null,null,null,null,"総ページ数",null,null,null,null,null,null,null,null,null,null,null,null,null,null,null,null,null,null,null,null,null,null,null,null,null,null,null,null,null,null,null,null,null,null,null,null,null,null,null,null,null,null,null,null,null,null,null,null,null,null,"様式ID","A-250170-101_1",null,null,null,null,null,null,null,null,null,null,null,null,null,null,null,null,null,null,null,null,null,null,null,null,null,null,null,null,null,null,null,null,null,null,null,null,null,null,null,null,null,null,null,null,null,"適用事業所番号","年度","特例会社別","事業主","郵便番号","住所","電話番号","産業中分類","事業所数","合計","事業所1","事業所2","事業所3","事業所4","事業所5","推進者","記入者"]
[null,null,null,null,null,null,null,null,null,null,null,null,null,null,null,2,null,null,null,null,null,null,null,null,null,null,null,null,null,null,null,null,null,null,null,null,null,null,null,null,null,null,null,null,null,null,null,null,null,null,null,null,null,null,null,null,null,null,null,null,null,null,null,null,null,null,"年度","06年度01版",null,null,null,null,null,null,null,null,null,null,null,null,null,null,null,null,null,null,null,null,null,null,null,null,null,null,null,null,null,null,null,null,null,null,null,null,null,null,null,null,null,null,null,null,null,"A","A","A","A","A","A","A","A","A","A","A","A","A","A","A","A","A"]
[null,null,null,null,null,null,null,null,null,null,null,null,null,null,null,null,null,null,null,null,null,null,null,null,null,null,null,null,null,null,null,null,null,null,null,null,null,null,null,null,null,null,null,null,null,null,null,null,null,null,null,null,null,null,null,null,null,null,null,null,null,null,null,null,null,null,"検査実施フラグ","OF",null,null,null,null,null,null,null,null,null,null,null,null,null,null,null,null,null,null,null,null,null,null,null,null,null,null,null,null,null,null,null,null,null,null,null,null,null,null,null,null,null,null,null,null,null,"A","A","A","A","A","A","A","A","A","A","A","A","A","A","A","A","A"]
[null,null,null,null,null,null,null,null,null,null,null,null,null,null,null,null,null,null,null,null,null,null,null,null,null,null,null,null,null,null,null,null,null,null,null,null,null,null,null,null,null,null,null,null,null,null,null,null,null,null,null,null,null,null,null,null,null,null,null,null,null,null,null,null,null,"37_01_01_008",null,null,null,null,null,null,null,null,null,null,null,null,null,null,null,null,null,null,null,null,null,null,null,null,null,null,null,null,null,null,null,null,null,null,null,null,null,null,null,null,null,null,null,null,null,null,null,"A","A","A","A","A","A","A","A","A","A","A","A","A","A","A","A","A"]
[null,"様式第6号の３(1)（第４条関係）",null,null,null,null,null,null,null,null,null,null,null,null,null,"障害者雇用状況報告書\n（法第45条の２の認定を受けた事業主用、事業主別）",null,null,null,null,null,null,null,null,null,null,null,null,null,null,null,null,null,null,null,null,null,null,null,null,null,null,null,null,null,null,null,null,null,null,null,null,"（日本産業規格Ａ列４）",null,null,null,null,null,null,null,null,null,null,null,null,1,null,null,null,null,null,null,null,null,null,null,null,null,null,null,null,null,null,null,null,null,null,null,null,null,null,null,null,null,null,null,null,null,null,null,null,null,null,null,null,null,null,null,null,null,null,null,null,"A","A","A","A","A","A","A","A","A","A","A","A","A","A","A","A","A"]
[null,null,null,null,"―",null,null,null,null,null,"―",null,null,null,null,null,null,null,null,null,null,null,null,null,null,null,null,null,null,null,null,null,null,null,null,null,null,null,null,null,null,null,null,null,null,null,null,null,null,null,null,null,null,null,null,null,null,null,null,null,null,null,null,null,null,null,null,null,null,null,null,null,null,null,null,null,null,null,null,null,null,null,null,null,null,null,null,null,null,null,null,null,null,null,null,null,null,null,null,null,null,null,null,null,null,null,null,null,null,null,null,null,null,"A","A","A","A","A","A","A","A","A","A","A","A","A","A","A","A","A"]
[null,null,null,null,null,null,null,null,null,null,null,null,null,null,null,null,null,null,null,null,null,null,null,null,null,null,null,null,null,null,null,null,null,null,null,null,null,null,null,null,null,null,null,null,null,null,null,null,null,null,null,null,null,null,null,null,null,null,null,null,null,null,null,null,null,null,null,null,null,null,null,null,null,null,null,null,null,null,null,null,null,null,null,null,null,null,null,null,null,null,null,null,null,null,null,null,null,null,null,null,null,null,null,null,null,null,null,null,null,null,null,null,null,"A","A","A","A","A","A","A","A","A","A","A","A","A","A","A","A","A"]
[null,null,null,null,null,null,null,null,null,null,null,null,null,null,null,null,null,null,null,null,null,null,null,null,null,null,null,null,null,null,null,null,null,null,null,null,null,null,null,null,null,null,null,null,null,null,null,null,null,null,null,null,"令和",null,null,7,null,"年 6月 1日現在  ",null,null,null,null,null,null,null,null,null,null,null,null,null,null,null,null,null,null,null,null,null,null,null,null,null,null,null,null,null,null,null,null,null,null,null,null,null,null,null,null,null,null,null,null,null,null,null,null,null,null,null,null,null,null,null,"A","A","A","A","A","A","A","A","A","A","A","A","A","A","A","A","A"]
[null,"Ａ　親事業主","(ふりがな)",null,null,null,null,null,null,null,null,null,null,null,null,null,null,null,null,null,null,null,null,null,null,"(3)主たる\n　事務所\n　の所在地",null,null,null,null,"〒",null,null,null,null,null,null,null,"―",null,null,null,null,null,null,null,null,null,"(4)事業\n   の種類",null,null,null,null,"産業\n分類",null,null,null,null,null,null,null,"(5)\n事業所\nの数",null,null,null,null,null,null,null,null,null,null,null,null,null,null,null,null,null,null,null,null,null,null,null,null,null,null,null,null,null,null,null,null,null,null,null,null,null,null,null,null,null,null,null,null,null,null,null,null,null,null,null,"A","A","A","A","A","A","A","A","A","A","A","A","A","A","A","A","A"]
[null,null,null,null,null,null,null,null,null,null,null,null,null,null,null,null,null,null,null,null,null,null,null,null,null,null,null,null,null,null,null,null,null,null,null,null,null,null,null,null,null,null,null,null,null,null,null,null,null,null,null,null,null,null,null,null,null,null,null,null,null,null,null,null,null,null,null,null,null,null,null,null,null,null,null,null,null,null,null,null,null,null,null,null,null,null,null,null,null,null,null,null,null,null,null,null,null,null,null,null,null,null,null,null,null,null,null,null,null,null,null,null,null,{"$f":"B6&\"\"","v":""},{"$f":"BD8&\"\"","v":"7"},null,{"$f":"G9&\"\"","v":""},{"$f":"AI9&\"\"","v":""},{"$f":"AE10&\"\"","v":""},{"$f":"AH17&\"\"","v":""},{"$f":"BF9&\"\"","v":""},{"$f":"BJ12&\"\"","v":""},null,null,null,null,null,null,{"$f":"#REF!&\"\"","v":{"$error":"#REF!"}},{"$f":"#REF!&\"\"","v":{"$error":"#REF!"}}]
[null,null,"(1)法人名称",null,null,null,null,null,null,null,null,null,null,null,null,null,null,null,null,null,null,null,null,null,null,null,null,null,null,null,null,null,null,null,null,null,null,null,null,null,null,null,null,null,null,null,null,null,null,null,null,null,null,null,null,null,null,null,null,null,null,null,null,null,null,null,null,null,null,null,null,null,null,null,null,null,null,null,null,null,null,null,null,null,null,null,null,null,null,null,null,null,null,null,null,null,null,null,null,null,null,null,null,null,null,null,null,null,null,null,null,null,null,{"$f":"F6&\"\"","v":""},null,null,{"$f":"G11&\"\"","v":""},{"$f":"AN9&\"\"","v":""},null,{"$f":"AM17&\"\"","v":""},{"$f":"AW12&\"\"","v":""},null,null,null,null,null,null,null,{"$f":"#REF!&\"\"","v":{"$error":"#REF!"}},{"$f":"#REF!&\"\"","v":{"$error":"#REF!"}}]
[null,null,null,null,null,null,null,null,null,null,null,null,null,null,null,null,null,null,null,null,null,null,null,null,null,null,null,null,null,null,null,null,null,null,null,null,null,null,null,null,null,null,null,null,null,null,null,null,{"$f":"IFERROR(VLOOKUP(BF9,産業分類マッピング表!C3:D101,2,FALSE),\"\")","v":""},null,null,null,null,null,null,null,null,null,null,null,null,null,null,null,null,null,null,null,null,null,null,null,null,null,null,null,null,null,null,null,null,null,null,null,null,null,null,null,null,null,null,null,null,null,null,null,null,null,null,null,null,null,null,null,null,null,null,null,null,null,null,null,null,{"$f":"L6&\"\"","v":""},null,null,{"$f":"G14&\"\"","v":""},null,null,{"$f":"AR17&\"\"","v":""},{"$f":"AW16&\"\"","v":""}]
[null,null,null,null,null,null,null,null,null,null,null,null,null,null,null,null,null,null,null,null,null,null,null,null,null,null,null,null,null,null,null,null,null,null,null,null,null,null,null,null,null,null,null,null,null,null,null,null,null,null,null,null,null,null,null,null,null,null,null,null,null,null,null,null,null,null,null,null,null,null,null,null,null,null,null,null,null,null,null,null,null,null,null,null,null,null,null,null,null,null,null,null,null,null,null,null,null,null,null,null,null,null,null,null,null,null,null,null,null,null,null,null,null,null,null,null,{"$f":"G15&\"\"","v":""}]
[null,null,"(ふりがな)"]
[null,null,"(2)氏名又は\n   代表者氏名",null,null,null,null,null,null,null,null,null,null,null,null,null,null,null,null,null,null,null,null,null,null,null,null,null,null,null,null,null,null,null,null,null,null,null,null,null,null,null,null,null,null,null,null,null,null,null,null,null,null,null,null,null,null,null,null,null,null,null,null,null,null,null,null,null,null,null,null,null,null,null,null,null,null,null,null,null,null,null,null,null,null,null,null,null,null,null,null,null,null,null,null,null,null,null,null,null,null,null,null,null,null,null,null,null,null,null,null,null,null,null,null,{"$f":"#REF!&\"\"","v":{"$error":"#REF!"}},{"$f":"G19&\"\"","v":""},{"$f":"AI19&\"\"","v":""},{"$f":"AE20&\"\"","v":""},{"$f":"AH27&\"\"","v":""},{"$f":"BF19&\"\"","v":""},{"$f":"BJ22&\"\"","v":""}]
[null,null,null,null,null,null,null,null,null,null,null,null,null,null,null,null,null,null,null,null,null,null,null,null,null,null,null,null,null,null,null,null,null,null,null,null,null,null,null,null,null,null,null,null,null,null,null,null,null,null,null,null,null,null,null,null,null,null,null,null,null,null,null,null,null,null,null,null,null,null,null,null,null,null,null,null,null,null,null,null,null,null,null,null,null,null,null,null,null,null,null,null,null,null,null,null,null,null,null,null,null,null,null,null,null,null,null,null,null,null,null,null,null,null,null,null,{"$f":"G21&\"\"","v":""},{"$f":"AN19&\"\"","v":""},null,{"$f":"AM27&\"\"","v":""},{"$f":"AW22&\"\"","v":""}]
[null,null,null,null,null,null,null,null,null,null,null,null,null,null,null,null,null,null,null,null,null,null,null,null,null,null,null,null,null,null,"(TEL",null,null,null,null,null,null,"―",null,null,null,null,"―",null,null,null,null,")",null,null,null,null,null,null,null,null,null,null,null,null,null,null,null,null,null,null,null,null,null,null,null,null,null,null,null,null,null,null,null,null,null,null,null,null,null,null,null,null,null,null,null,null,null,null,null,null,null,null,null,null,null,null,null,null,null,null,null,null,null,null,null,null,null,null,null,null,{"$f":"G24&\"\"","v":""},null,null,{"$f":"AR27&\"\"","v":""},{"$f":"AW26&\"\"","v":""}]
[null,null,"(6)法人番号"]
[null,"Ｂ　関係子会社","(ふりがな)",null,null,null,null,null,null,null,null,null,null,null,null,null,null,null,null,null,null,null,null,null,null,"(9)主たる\n　事務所\n　の所在地",null,null,null,null,"〒",null,null,null,null,null,null,null,"―",null,null,null,null,null,null,null,null,null,"(10)事業\n   の種類",null,null,null,null,"産業\n分類",null,null,null,null,null,null,null,"(11)\n事業所\nの数"]
[]
[null,null,"(7)法人名称"]
[null,null,null,null,null,null,null,null,null,null,null,null,null,null,null,null,null,null,null,null,null,null,null,null,null,null,null,null,null,null,null,null,null,null,null,null,null,null,null,null,null,null,null,null,null,null,null,null,{"$f":"IFERROR(VLOOKUP(BF19,産業分類マッピング表!C3:D101,2,FALSE),\"\")","v":""}]
[]
[null,null,"(ふりがな)"]
[null,null,"(8)氏名又は\n   代表者氏名"]
[]
[null,null,null,null,null,null,null,null,null,null,null,null,null,null,null,null,null,null,null,null,null,null,null,null,null,null,null,null,null,null,"(TEL",null,null,null,null,null,null,"―",null,null,null,null,"―",null,null,null,null,")"]
[null,null,"(12)法人番号"]
[null,"　Ｃ　雇用の状況","区     分",null,null,null,null,null,null,null,null,"合　計",null,null,null,null,null,null,null,null,"Ｄ　事業所別の内訳"]
[null,null,"(13)適用事業所番号",null,null,null,null,null,null,null,null,null,null,null,null,null,null,null,null,null,null,null,"―",null,null,null,null,"―",null,null,null,"―",null,null,null,null,"―",null,null,null,"―",null,null,null,null,"―",null,null,null,"―",null,null,null,null,"―",null,null,null,"―",null,null,null,null,"―",null,null,null,null,null,null,null,null,null,null,null,null,null,null,null,null,null,null,null,null,null,null,null,null,null,null,null,null,null,null,null,null,null,null,null,null,null,null,null,null,null,null,null,null,null,null,null,null,null,null,null,null,null,null,null,null,null,null,null,{"$f":"U30&\"\"","v":""},{"$f":"AD30&\"\"","v":""},{"$f":"AM30&\"\"","v":""},{"$f":"AV30&\"\"","v":""},{"$f":"BE30&\"\"","v":""}]
[null,null,"(14)事業所の名称",null,null,null,null,null,null,null,null,null,null,null,null,null,null,null,null,null,null,null,null,null,null,null,null,null,null,null,null,null,null,null,null,null,null,null,null,null,null,null,null,null,null,null,null,null,null,null,null,null,null,null,null,null,null,null,null,null,null,null,null,null,null,null,null,null,null,null,null,null,null,null,null,null,null,null,null,null,null,null,null,null,null,null,null,null,null,null,null,null,null,null,null,null,null,null,null,null,null,null,null,null,null,null,null,null,null,null,null,null,null,null,null,null,null,null,null,null,null,null,null,{"$f":"X30&\"\"","v":""},{"$f":"AG30&\"\"","v":""},{"$f":"AP30&\"\"","v":""},{"$f":"AY30&\"\"","v":""},{"$f":"BH30&\"\"","v":""}]
[null,null,null,null,null,null,null,null,null,null,null,null,null,null,null,null,null,null,null,null,null,null,null,null,null,null,null,null,null,null,null,null,null,null,null,null,null,null,null,null,null,null,null,null,null,null,null,null,null,null,null,null,null,null,null,null,null,null,null,null,null,null,null,null,null,null,null,null,null,null,null,null,null,null,null,null,null,null,null,null,null,null,null,null,null,null,null,null,null,null,null,null,null,null,null,null,null,null,null,null,null,null,null,null,null,null,null,null,null,null,null,null,null,null,null,null,null,null,null,null,null,null,null,{"$f":"AC30&\"\"","v":""},{"$f":"AL30&\"\"","v":""},{"$f":"AU30&\"\"","v":""},{"$f":"BD30&\"\"","v":""},{"$f":"BM30&\"\"","v":""}]
[null,null,null,null,null,null,null,null,null,null,null,null,null,null,null,null,null,null,null,null,null,null,null,null,null,null,null,null,null,null,null,null,null,null,null,null,null,null,null,null,null,null,null,null,null,null,null,null,null,null,null,null,null,null,null,null,null,null,null,null,null,null,null,null,null,null,null,null,null,null,null,null,null,null,null,null,null,null,null,null,null,null,null,null,null,null,null,null,null,null,null,null,null,null,null,null,null,null,null,null,null,null,null,null,null,null,null,null,null,null,null,null,null,null,null,null,null,null,null,null,null,null,null,{"$f":"U31&\"\"","v":""},{"$f":"AD31&\"\"","v":""},{"$f":"AM31&\"\"","v":""},{"$f":"AV31&\"\"","v":""},{"$f":"BE31&\"\"","v":""}]
[]
[null,null,"(15)事業所の区分\n　１　指定就労継続支援Ａ型事業所\n　２　上記１以外"]
[]
[]
[]
[null,null,"(16)事業所の所在地",null,null,null,null,null,null,null,null,null,null,null,null,null,null,null,null,null,null,null,null,null,null,null,null,null,null,null,null,null,null,null,null,null,null,null,null,null,null,null,null,null,null,null,null,null,null,null,null,null,null,null,null,null,null,null,null,null,null,null,null,null,null,null,null,null,null,null,null,null,null,null,null,null,null,null,null,null,null,null,null,null,null,null,null,null,null,null,null,null,null,null,null,null,null,null,null,null,null,null,null,null,null,null,null,null,null,null,null,null,null,null,null,null,null,null,null,null,null,null,null,{"$f":"U39&\"\"","v":""},{"$f":"AD39&\"\"","v":""},{"$f":"AM39&\"\"","v":""},{"$f":"AV39&\"\"","v":""},{"$f":"BE39&\"\"","v":""}]
[null,null,null,null,null,null,null,null,null,null,null,null,null,null,null,null,null,null,null,null,null,null,null,null,null,null,null,null,null,null,null,null,null,null,null,null,null,null,null,null,null,null,null,null,null,null,null,null,null,null,null,null,null,null,null,null,null,null,null,null,null,null,null,null,null,null,null,null,null,null,null,null,null,null,null,null,null,null,null,null,null,null,null,null,null,null,null,null,null,null,null,null,null,null,null,null,null,null,null,null,null,null,null,null,null,null,null,null,null,null,null,null,null,null,null,null,null,null,null,null,null,null,{"$f":"L40&\"\"","v":""}]
[null,null,null,null,null,null,null,null,null,null,null,null,null,null,null,null,null,null,null,null,null,null,null,null,null,null,null,null,null,null,null,null,null,null,null,null,null,null,null,null,null,null,null,null,null,null,null,null,null,null,null,null,null,null,null,null,null,null,null,null,null,null,null,null,null,null,null,null,null,null,null,null,null,null,null,null,null,null,null,null,null,null,null,null,null,null,null,null,null,null,null,null,null,null,null,null,null,null,null,null,null,null,null,null,null,null,null,null,null,null,null,null,null,null,null,null,null,null,null,null,null,null,{"$f":"L41&\"\"","v":""}]
[]
[null,null,"(17)事業の内容",null,null,null,null,null,null,null,null,null,null,null,null,null,null,null,null,null,null,null,null,null,null,null,null,null,null,null,null,null,null,null,null,null,null,null,null,null,null,null,null,null,null,null,null,null,null,null,null,null,null,null,null,null,null,null,null,null,null,null,null,null,null,null,null,null,null,null,null,null,null,null,null,null,null,null,null,null,null,null,null,null,null,null,null,null,null,null,null,null,null,null,null,null,null,null,null,null,null,null,null,null,null,null,null,null,null,null,null,null,null,null,null,null,null,null,null,null,null,null,null,{"$f":"U43&\"\"","v":""},{"$f":"AD43&\"\"","v":""},{"$f":"AM43&\"\"","v":""},{"$f":"AV43&\"\"","v":""},{"$f":"BE43&\"\"","v":""}]
[null,null,null,null,null,null,null,null,null,null,null,null,null,null,null,null,null,null,null,null,null,null,null,null,null,null,null,null,null,null,null,null,null,null,null,null,null,null,null,null,null,null,null,null,null,null,null,null,null,null,null,null,null,null,null,null,null,null,null,null,null,null,null,null,null,null,null,null,null,null,null,null,null,null,null,null,null,null,null,null,null,null,null,null,null,null,null,null,null,null,null,null,null,null,null,null,null,null,null,null,null,null,null,null,null,null,null,null,null,null,null,null,null,null,null,null,null,null,null,null,null,null,{"$f":"M44&\"\"","v":""}]
[null,null,null,null,null,null,null,null,null,null,null,null,null,null,null,null,null,null,null,null,null,null,null,null,null,null,null,null,null,null,null,null,null,null,null,null,null,null,null,null,null,null,null,null,null,null,null,null,null,null,null,null,null,null,null,null,null,null,null,null,null,null,null,null,null,null,null,null,null,null,null,null,null,null,null,null,null,null,null,null,null,null,null,null,null,null,null,null,null,null,null,null,null,null,null,null,null,null,null,null,null,null,null,null,null,null,null,null,null,null,null,null,null,null,null,null,null,null,null,null,null,null,{"$f":"M45&\"\"","v":""}]
[null,null,null,null,null,null,null,null,null,null,null,null,null,null,null,null,null,null,null,null,null,null,null,null,null,null,null,null,null,null,null,null,null,null,null,null,null,null,null,null,null,null,null,null,null,null,null,null,null,null,null,null,null,null,null,null,null,null,null,null,null,null,null,null,null,null,"(ｲ)常用雇用労働者の数","(ﾛ)短時間労働者の数","(ﾆ)法定雇用障害者の算定の基礎と なる労働者の数","(ﾎ)重度身体障害者の数",null,"(ﾍ)重度身体障害者以外の身体障害者の数",null,"(ﾄ)重度身体障害者である短時間労働者の数",null,"(ﾁ)重度身体障害者以外の身体障害者である短時間労働者の数",null,"(ﾘ)重度身体障害者である特定短時間労働者の数",null,"(ﾙ)重度知的障害者の数",null,"(ｦ)重度知的障害者以外の知的障害者の数",null,"(ﾜ)重度知的障害者である短時間労働者の数",null,"(ｶ)重度知的障害者以外の知的障害者である短時間労働者の数",null,"(ﾖ)重度知的障害者である特定短時間労働者の数",null,"(ﾚ)精神障害者の数",null,"(ｿ)精神障害者である短時間労働者の数",null,"(ﾂ)精神障害者である特定短時間労働者の数",null,"視覚障害者（第１号に該当する者）","聴覚又は平衡機能障害者\n（第２号に該当する者）","音声・言語・そしゃく機能障害者\n（第３号に該当する者）","肢体不自由者（第４号に該当する者）","内部障害（第５号に該当する者）",null,null,null,null,null,null,null,null,null,null,null,null,null,null,null,null,null,null,null,null,null,null,{"$f":"M46&\"\"","v":""}]
[null,null,"(18)除外率",null,null,null,null,null,null,null,null,null,null,null,null,null,null,null,null,null,null,null,null,null,null,null,null,null,"％",null,null,null,null,null,null,null,null,"％",null,null,null,null,null,null,null,null,"％",null,null,null,null,null,null,null,null,"％",null,null,null,null,null,null,null,null,"％",null,{"$f":"SUM(BO92:BO79019)","v":0},0,0,0,0,0,0,0,0,0,0,0,0,0,0,0,0,0,0,0,0,0,0,0,0,0,0,0,0,0,0,0,0,0,null,null,null,null,null,null,null,null,null,null,null,null,null,null,null,null,null,null,null,null,null,null,{"$f":"M47&\"\"","v":""},{"$f":"U47&\"\"","v":""},{"$f":"AD47&\"\"","v":""},{"$f":"AM47&\"\"","v":""},{"$f":"AV47&\"\"","v":""},{"$f":"BE47&\"\"","v":""}]
[null,null,"(19)常用雇用労働者の数"]
[]
[null,null,null,"(ｲ)常用雇用労働者の数",null,null,null,null,null,null,null,null,{"$f":"V50+AE50+AN50+AW50+BF50+BO47","v":0},null,null,null,null,null,null,"人",null,null,null,null,null,null,null,null,"人",null,null,null,null,null,null,null,null,"人",null,null,null,null,null,null,null,null,"人",null,null,null,null,null,null,null,null,"人",null,null,null,null,null,null,null,null,"人",null,null,null,null,null,null,null,null,null,null,null,null,null,null,null,null,null,null,null,null,null,null,null,null,null,null,null,null,null,null,null,null,null,null,null,null,null,null,null,null,null,null,null,null,null,null,null,null,null,null,null,null,null,null,null,null,null,null,null,null,null,null,null,{"$f":"M50&\"\"","v":"0"},{"$f":"V50&\"\"","v":""},{"$f":"AE50&\"\"","v":""},{"$f":"AN50&\"\"","v":""},{"$f":"AW50&\"\"","v":""},{"$f":"BF50&\"\"","v":""}]
[null,null,null,"(ﾛ)短時間労働者の数",null,null,null,null,null,null,null,null,{"$f":"V51+AE51+AN51+AW51+BF51+BP47","v":0},null,null,null,null,null,null,"人",null,null,null,null,null,null,null,null,"人",null,null,null,null,null,null,null,null,"人",null,null,null,null,null,null,null,null,"人",null,null,null,null,null,null,null,null,"人",null,null,null,null,null,null,null,null,"人",null,null,null,null,null,null,null,null,null,null,null,null,null,null,null,null,null,null,null,null,null,null,null,null,null,null,null,null,null,null,null,null,null,null,null,null,null,null,null,null,null,null,null,null,null,null,null,null,null,null,null,null,null,null,null,null,null,null,null,null,null,null,null,{"$f":"M51&\"\"","v":"0"},{"$f":"V51&\"\"","v":""},{"$f":"AE51&\"\"","v":""},{"$f":"AN51&\"\"","v":""},{"$f":"AW51&\"\"","v":""},{"$f":"BF51&\"\"","v":""}]
[null,null,null,"(ﾊ)常用雇用労働者の数［ｲ+(ﾛ×0.5)］",null,null,null,null,null,null,null,null,{"$f":"M50+M51*0.5","v":0},null,null,null,null,null,null,"人",null,{"$f":"V50+V51*0.5","v":0},null,null,null,null,null,null,"人",null,{"$f":"AE50+AE51*0.5","v":0},null,null,null,null,null,null,"人",null,{"$f":"AN50+AN51*0.5","v":0},null,null,null,null,null,null,"人",null,{"$f":"AW50+AW51*0.5","v":0},null,null,null,null,null,null,"人",null,{"$f":"BF50+BF51*0.5","v":0},null,null,null,null,null,null,"人",null,null,null,null,null,null,null,null,null,null,null,null,null,null,null,null,null,null,null,null,null,null,null,null,null,null,null,null,null,null,null,null,null,null,null,null,null,null,null,null,null,null,null,null,null,null,null,null,null,null,null,null,null,null,null,null,null,null,null,null,null,null,null,{"$f":"M52&\"\"","v":"0"},{"$f":"V52&\"\"","v":"0"},{"$f":"AE52&\"\"","v":"0"},{"$f":"AN52&\"\"","v":"0"},{"$f":"AW52&\"\"","v":"0"},{"$f":"BF52&\"\"","v":"0"}]
[null,null,null,"(ﾆ)法定雇用障害者の算定の基礎と\n   なる労働者の数",null,null,null,null,null,null,null,null,{"$f":"V53+AE53+AN53+AW53+BF53+BQ47","v":0},null,null,null,null,null,null,"人",null,null,null,null,null,null,null,null,"人",null,null,null,null,null,null,null,null,"人",null,null,null,null,null,null,null,null,"人",null,null,null,null,null,null,null,null,"人",null,null,null,null,null,null,null,null,"人",null,null,null,null,null,null,null,null,null,null,null,null,null,null,null,null,null,null,null,null,null,null,null,null,null,null,null,null,null,null,null,null,null,null,null,null,null,null,null,null,null,null,null,null,null,null,null,null,null,null,null,null,null,null,null,null,null,null,null,null,null,null,null,{"$f":"M53&\"\"","v":"0"},{"$f":"V53&\"\"","v":""},{"$f":"AE53&\"\"","v":""},{"$f":"AN53&\"\"","v":""},{"$f":"AW53&\"\"","v":""},{"$f":"BF53&\"\"","v":""}]
[null,null,"(20)常用雇用身体障害者、知的障害者及び精神障害者の数"]
[]
[null,null,null,"(ﾎ)重度身体障害者の数",null,null,null,null,null,null,null,null,{"$f":"V56+AE56+AN56+AW56+BF56+BR47","v":0},null,null,null,null,null,null,"人",null,null,null,null,null,null,null,null,"人",null,null,null,null,null,null,null,null,"人",null,null,null,null,null,null,null,null,"人",null,null,null,null,null,null,null,null,"人",null,null,null,null,null,null,null,null,"人",null,null,null,null,null,null,null,null,null,null,null,null,null,null,null,null,null,null,null,null,null,null,null,null,null,null,null,null,null,null,null,null,null,null,null,null,null,null,null,null,null,null,null,null,null,null,null,null,null,null,null,null,null,null,null,null,null,null,null,null,null,null,null,{"$f":"M56&\"\"","v":"0"},{"$f":"V56&\"\"","v":""},{"$f":"AE56&\"\"","v":""},{"$f":"AN56&\"\"","v":""},{"$f":"AW56&\"\"","v":""},{"$f":"BF56&\"\"","v":""}]
[null,null,null,null,null,null,null,null,null,null,null,"（",{"$f":"V57+AE57+AN57+AW57+BF57+BS47","v":0},null,null,null,null,null,null,"）","（",null,null,null,null,null,null,null,"）","（",null,null,null,null,null,null,null,"）","（",null,null,null,null,null,null,null,"）","（",null,null,null,null,null,null,null,"）","（",null,null,null,null,null,null,null,"）",null,null,null,null,null,null,null,null,null,null,null,null,null,null,null,null,null,null,null,null,null,null,null,null,null,null,null,null,null,null,null,null,null,null,null,null,null,null,null,null,null,null,null,null,null,null,null,null,null,null,null,null,null,null,null,null,null,null,null,null,null,null,null,{"$f":"M57&\"\"","v":"0"},{"$f":"V57&\"\"","v":""},{"$f":"AE57&\"\"","v":""},{"$f":"AN57&\"\"","v":""},{"$f":"AW57&\"\"","v":""},{"$f":"BF57&\"\"","v":""}]
[null,null,null,"(ﾍ)重度身体障害者以外の\n   身体障害者の数",null,null,null,null,null,null,null,null,{"$f":"V58+AE58+AN58+AW58+BF58+BT47","v":0},null,null,null,null,null,null,"人",null,null,null,null,null,null,null,null,"人",null,null,null,null,null,null,null,null,"人",null,null,null,null,null,null,null,null,"人",null,null,null,null,null,null,null,null,"人",null,null,null,null,null,null,null,null,"人",null,null,null,null,null,null,null,null,null,null,null,null,null,null,null,null,null,null,null,null,null,null,null,null,null,null,null,null,null,null,null,null,null,null,null,null,null,null,null,null,null,null,null,null,null,null,null,null,null,null,null,null,null,null,null,null,null,null,null,null,null,null,null,"0","","","","",""]
[null,null,null,null,null,null,null,null,null,null,null,"（",{"$f":"V59+AE59+AN59+AW59+BF59+BU47","v":0},null,null,null,null,null,null,"）","（",null,null,null,null,null,null,null,"）","（",null,null,null,null,null,null,null,"）","（",null,null,null,null,null,null,null,"）","（",null,null,null,null,null,null,null,"）","（",null,null,null,null,null,null,null,"）",null,null,null,null,null,null,null,null,null,null,null,null,null,null,null,null,null,null,null,null,null,null,null,null,null,null,null,null,null,null,null,null,null,null,null,null,null,null,null,null,null,null,null,null,null,null,null,null,null,null,null,null,null,null,null,null,null,null,null,null,null,null,null,"0","","","","",""]
[null,null,null,"(ﾄ)重度身体障害者である\n　 短時間労働者の数",null,null,null,null,null,null,null,null,{"$f":"V60+AE60+AN60+AW60+BF60+BV47","v":0},null,null,null,null,null,null,"人",null,null,null,null,null,null,null,null,"人",null,null,null,null,null,null,null,null,"人",null,null,null,null,null,null,null,null,"人",null,null,null,null,null,null,null,null,"人",null,null,null,null,null,null,null,null,"人",null,null,null,null,null,null,null,null,null,null,null,null,null,null,null,null,null,null,null,null,null,null,null,null,null,null,null,null,null,null,null,null,null,null,null,null,null,null,null,null,null,null,null,null,null,null,null,null,null,null,null,null,null,null,null,null,null,null,null,null,null,null,null,{"$f":"M69&\"\"","v":"0"},{"$f":"V69&\"\"","v":""},{"$f":"AE69&\"\"","v":""},{"$f":"AN69&\"\"","v":""},{"$f":"AW69&\"\"","v":""},{"$f":"BF69&\"\"","v":""}]
[null,null,null,null,null,null,null,null,null,null,null,"（",{"$f":"V61+AE61+AN61+AW61+BF61+BW47","v":0},null,null,null,null,null,null,"）","（",null,null,null,null,null,null,null,"）","（",null,null,null,null,null,null,null,"）","（",null,null,null,null,null,null,null,"）","（",null,null,null,null,null,null,null,"）","（",null,null,null,null,null,null,null,"）",null,null,null,null,null,null,null,null,null,null,null,null,null,null,null,null,null,null,null,null,null,null,null,null,null,null,null,null,null,null,null,null,null,null,null,null,null,null,null,null,null,null,null,null,null,null,null,null,null,null,null,null,null,null,null,null,null,null,null,null,null,null,null,{"$f":"M72&\"\"","v":"0"},{"$f":"V72&\"\"","v":""},{"$f":"AE72&\"\"","v":""},{"$f":"AN72&\"\"","v":""},{"$f":"AW72&\"\"","v":""},{"$f":"BF72&\"\"","v":""}]
[null,null,null,"(ﾁ)重度身体障害者以外の身体障害\n   者である短時間労働者の数",null,null,null,null,null,null,null,null,{"$f":"V62+AE62+AN62+AW62+BF62+BX47","v":0},null,null,null,null,null,null,"人",null,null,null,null,null,null,null,null,"人",null,null,null,null,null,null,null,null,"人",null,null,null,null,null,null,null,null,"人",null,null,null,null,null,null,null,null,"人",null,null,null,null,null,null,null,null,"人",null,null,null,null,null,null,null,null,null,null,null,null,null,null,null,null,null,null,null,null,null,null,null,null,null,null,null,null,null,null,null,null,null,null,null,null,null,null,null,null,null,null,null,null,null,null,null,null,null,null,null,null,null,null,null,null,null,null,null,null,null,null,null,"0","","","","",""]
[null,null,null,null,null,null,null,null,null,null,null,"（",{"$f":"V63+AE63+AN63+AW63+BF63+BY47","v":0},null,null,null,null,null,null,"）","（",null,null,null,null,null,null,null,"）","（",null,null,null,null,null,null,null,"）","（",null,null,null,null,null,null,null,"）","（",null,null,null,null,null,null,null,"）","（",null,null,null,null,null,null,null,"）",null,null,null,null,null,null,null,null,null,null,null,null,null,null,null,null,null,null,null,null,null,null,null,null,null,null,null,null,null,null,null,null,null,null,null,null,null,null,null,null,null,null,null,null,null,null,null,null,null,null,null,null,null,null,null,null,null,null,null,null,null,null,null,"0","","","","",""]
[null,null,null,"(ﾘ)重度身体障害者である\n   特定短時間労働者の数",null,null,null,null,null,null,null,null,{"$f":"V64+AE64+AN64+AW64+BF64+BZ47","v":0},null,null,null,null,null,null,"人",null,null,null,null,null,null,null,null,"人",null,null,null,null,null,null,null,null,"人",null,null,null,null,null,null,null,null,"人",null,null,null,null,null,null,null,null,"人",null,null,null,null,null,null,null,null,"人",null,null,null,null,null,null,null,null,null,null,null,null,null,null,null,null,null,null,null,null,null,null,null,null,null,null,null,null,null,null,null,null,null,null,null,null,null,null,null,null,null,null,null,null,null,null,null,null,null,null,null,null,null,null,null,null,null,null,null,null,null,null,null,{"$f":"M64&\"\"","v":"0"},{"$f":"V64&\"\"","v":""},{"$f":"AE64&\"\"","v":""},{"$f":"AN64&\"\"","v":""},{"$f":"AW64&\"\"","v":""},{"$f":"BF64&\"\"","v":""}]
[null,null,null,null,null,null,null,null,null,null,null,"（",{"$f":"V65+AE65+AN65+AW65+BF65+CA47","v":0},null,null,null,null,null,null,"）","（",null,null,null,null,null,null,null,"）","（",null,null,null,null,null,null,null,"）","（",null,null,null,null,null,null,null,"）","（",null,null,null,null,null,null,null,"）","（",null,null,null,null,null,null,null,"）",null,null,null,null,null,null,null,null,null,null,null,null,null,null,null,null,null,null,null,null,null,null,null,null,null,null,null,null,null,null,null,null,null,null,null,null,null,null,null,null,null,null,null,null,null,null,null,null,null,null,null,null,null,null,null,null,null,null,null,null,null,null,null,"0","","","","",""]
[null,null,null,"(ﾇ)身体障害者の数",null,null,null,null,null,null,null,null,{"$f":"(M56*2)+M58+M60+((M62+M64)*0.5)","v":0},null,null,null,null,null,null,"人",null,{"$f":"(V56*2)+V58+V60+((V62+V64)*0.5)","v":0},null,null,null,null,null,null,"人",null,{"$f":"(AE56*2)+AE58+AE60+((AE62+AE64)*0.5)","v":0},null,null,null,null,null,null,"人",null,{"$f":"(AN56*2)+AN58+AN60+((AN62+AN64)*0.5)","v":0},null,null,null,null,null,null,"人",null,{"$f":"(AW56*2)+AW58+AW60+((AW62+AW64)*0.5)","v":0},null,null,null,null,null,null,"人",null,{"$f":"(BF56*2)+BF58+BF60+((BF62+BF64)*0.5)","v":0},null,null,null,null,null,null,"人",null,null,null,null,null,null,null,null,null,null,null,null,null,null,null,null,null,null,null,null,null,null,null,null,null,null,null,null,null,null,null,null,null,null,null,null,null,null,null,null,null,null,null,null,null,null,null,null,null,null,null,null,null,null,null,null,null,null,null,null,null,null,null,"0","0","0","0","0","0"]
[null,null,null,"  ［(ﾎ×2)+ﾍ+ﾄ+((ﾁ+ﾘ)×0.5)］",null,null,null,null,null,null,null,"（",{"$f":"(M57*2)+M59+M61+((M63+M65)*0.5)","v":0},null,null,null,null,null,null,"）","（",{"$f":"(V57*2)+V59+V61+((V63+V65)*0.5)","v":0},null,null,null,null,null,null,"）","（",{"$f":"(AE57*2)+AE59+AE61+((AE63+AE65)*0.5)","v":0},null,null,null,null,null,null,"）","（",{"$f":"(AN57*2)+AN59+AN61+((AN63+AN65)*0.5)","v":0},null,null,null,null,null,null,"）","（",{"$f":"(AW57*2)+AW59+AW61+((AW63+AW65)*0.5)","v":0},null,null,null,null,null,null,"）","（",{"$f":"(BF57*2)+BF59+BF61+((BF63+BF65)*0.5)","v":0},null,null,null,null,null,null,"）",null,null,null,null,null,null,null,null,null,null,null,null,null,null,null,null,null,null,null,null,null,null,null,null,null,null,null,null,null,null,null,null,null,null,null,null,null,null,null,null,null,null,null,null,null,null,null,null,null,null,null,null,null,null,null,null,null,null,null,null,null,null,null,"0","0","0","0","0","0"]
[null,null,null,"(ﾙ)重度知的障害者の数",null,null,null,null,null,null,null,null,{"$f":"V68+AE68+AN68+AW68+BF68+CB47","v":0},null,null,null,null,null,null,"人",null,null,null,null,null,null,null,null,"人",null,null,null,null,null,null,null,null,"人",null,null,null,null,null,null,null,null,"人",null,null,null,null,null,null,null,null,"人",null,null,null,null,null,null,null,null,"人",null,null,null,null,null,null,null,null,null,null,null,null,null,null,null,null,null,null,null,null,null,null,null,null,null,null,null,null,null,null,null,null,null,null,null,null,null,null,null,null,null,null,null,null,null,null,null,null,null,null,null,null,null,null,null,null,null,null,null,null,null,null,null,"0","","","","",""]
[null,null,null,null,null,null,null,null,null,null,null,"（",{"$f":"V69+AE69+AN69+AW69+BF69+CC47","v":0},null,null,null,null,null,null,"）","（",null,null,null,null,null,null,null,"）","（",null,null,null,null,null,null,null,"）","（",null,null,null,null,null,null,null,"）","（",null,null,null,null,null,null,null,"）","（",null,null,null,null,null,null,null,"）",null,null,null,null,null,null,null,null,null,null,null,null,null,null,null,null,null,null,null,null,null,null,null,null,null,null,null,null,null,null,null,null,null,null,null,null,null,null,null,null,null,null,null,null,null,null,null,null,null,null,null,null,null,null,null,null,null,null,null,null,null,null,null,"0","","","","",""]
[null,null,null,"(ｦ)重度知的障害者以外の\n   知的障害者の数",null,null,null,null,null,null,null,null,{"$f":"V70+AE70+AN70+AW70+BF70+CD47","v":0},null,null,null,null,null,null,"人",null,null,null,null,null,null,null,null,"人",null,null,null,null,null,null,null,null,"人",null,null,null,null,null,null,null,null,"人",null,null,null,null,null,null,null,null,"人",null,null,null,null,null,null,null,null,"人",null,null,null,null,null,null,null,null,null,null,null,null,null,null,null,null,null,null,null,null,null,null,null,null,null,null,null,null,null,null,null,null,null,null,null,null,null,null,null,null,null,null,null,null,null,null,null,null,null,null,null,null,null,null,null,null,null,null,null,null,null,null,null,"0","","","","",""]
[null,null,null,null,null,null,null,null,null,null,null,"（",{"$f":"V71+AE71+AN71+AW71+BF71+CE47","v":0},null,null,null,null,null,null,"）","（",null,null,null,null,null,null,null,"）","（",null,null,null,null,null,null,null,"）","（",null,null,null,null,null,null,null,"）","（",null,null,null,null,null,null,null,"）","（",null,null,null,null,null,null,null,"）",null,null,null,null,null,null,null,null,null,null,null,null,null,null,null,null,null,null,null,null,null,null,null,null,null,null,null,null,null,null,null,null,null,null,null,null,null,null,null,null,null,null,null,null,null,null,null,null,null,null,null,null,null,null,null,null,null,null,null,null,null,null,null,"0","","","","",""]
[null,null,null,"(ﾜ)重度知的障害者である\n   短時間労働者の数",null,null,null,null,null,null,null,null,{"$f":"V72+AE72+AN72+AW72+BF72+CF47","v":0},null,null,null,null,null,null,"人",null,null,null,null,null,null,null,null,"人",null,null,null,null,null,null,null,null,"人",null,null,null,null,null,null,null,null,"人",null,null,null,null,null,null,null,null,"人",null,null,null,null,null,null,null,null,"人",null,null,null,null,null,null,null,null,null,null,null,null,null,null,null,null,null,null,null,null,null,null,null,null,null,null,null,null,null,null,null,null,null,null,null,null,null,null,null,null,null,null,null,null,null,null,null,null,null,null,null,null,null,null,null,null,null,null,null,null,null,null,null,"0","","","","",""]
[null,null,null,null,null,null,null,null,null,null,null,"（",{"$f":"V73+AE73+AN73+AW73+BF73+CG47","v":0},null,null,null,null,null,null,"）","（",null,null,null,null,null,null,null,"）","（",null,null,null,null,null,null,null,"）","（",null,null,null,null,null,null,null,"）","（",null,null,null,null,null,null,null,"）","（",null,null,null,null,null,null,null,"）",null,null,null,null,null,null,null,null,null,null,null,null,null,null,null,null,null,null,null,null,null,null,null,null,null,null,null,null,null,null,null,null,null,null,null,null,null,null,null,null,null,null,null,null,null,null,null,null,null,null,null,null,null,null,null,null,null,null,null,null,null,null,null,"0","","","","",""]
[null,null,null,"(ｶ)重度知的障害者以外の知的障害\n   者である短時間労働者の数",null,null,null,null,null,null,null,null,{"$f":"V74+AE74+AN74+AW74+BF74+CH47","v":0},null,null,null,null,null,null,"人",null,null,null,null,null,null,null,null,"人",null,null,null,null,null,null,null,null,"人",null,null,null,null,null,null,null,null,"人",null,null,null,null,null,null,null,null,"人",null,null,null,null,null,null,null,null,"人",null,null,null,null,null,null,null,null,null,null,null,null,null,null,null,null,null,null,null,null,null,null,null,null,null,null,null,null,null,null,null,null,null,null,null,null,null,null,null,null,null,null,null,null,null,null,null,null,null,null,null,null,null,null,null,null,null,null,null,null,null,null,null,"0","","","","",""]
[null,null,null,null,null,null,null,null,null,null,null,"（",{"$f":"V75+AE75+AN75+AW75+BF75+CI47","v":0},null,null,null,null,null,null,"）","（",null,null,null,null,null,null,null,"）","（",null,null,null,null,null,null,null,"）","（",null,null,null,null,null,null,null,"）","（",null,null,null,null,null,null,null,"）","（",null,null,null,null,null,null,null,"）",null,null,null,null,null,null,null,null,null,null,null,null,null,null,null,null,null,null,null,null,null,null,null,null,null,null,null,null,null,null,null,null,null,null,null,null,null,null,null,null,null,null,null,null,null,null,null,null,null,null,null,null,null,null,null,null,null,null,null,null,null,null,null,"0","","","","",""]
[null,null,null,"(ﾖ)重度知的障害者である\n   特定短時間労働者の数",null,null,null,null,null,null,null,null,{"$f":"V76+AE76+AN76+AW76+BF76+CJ47","v":0},null,null,null,null,null,null,"人",null,null,null,null,null,null,null,null,"人",null,null,null,null,null,null,null,null,"人",null,null,null,null,null,null,null,null,"人",null,null,null,null,null,null,null,null,"人",null,null,null,null,null,null,null,null,"人",null,null,null,null,null,null,null,null,null,null,null,null,null,null,null,null,null,null,null,null,null,null,null,null,null,null,null,null,null,null,null,null,null,null,null,null,null,null,null,null,null,null,null,null,null,null,null,null,null,null,null,null,null,null,null,null,null,null,null,null,null,null,null,{"$f":"M76&\"\"","v":"0"},{"$f":"V76&\"\"","v":""},{"$f":"AE76&\"\"","v":""},{"$f":"AN76&\"\"","v":""},{"$f":"AW76&\"\"","v":""},{"$f":"BF76&\"\"","v":""}]
[null,null,null,null,null,null,null,null,null,null,null,"（",{"$f":"V77+AE77+AN77+AW77+BF77+CK47","v":0},null,null,null,null,null,null,"）","（",null,null,null,null,null,null,null,"）","（",null,null,null,null,null,null,null,"）","（",null,null,null,null,null,null,null,"）","（",null,null,null,null,null,null,null,"）","（",null,null,null,null,null,null,null,"）",null,null,null,null,null,null,null,null,null,null,null,null,null,null,null,null,null,null,null,null,null,null,null,null,null,null,null,null,null,null,null,null,null,null,null,null,null,null,null,null,null,null,null,null,null,null,null,null,null,null,null,null,null,null,null,null,null,null,null,null,null,null,null,"0","","","","",""]
[null,null,null,"(ﾀ)知的障害者の数",null,null,null,null,null,null,null,null,{"$f":"(M68*2)+M70+M72+((M74+M76)*0.5)","v":0},null,null,null,null,null,null,"人",null,{"$f":"(V68*2)+V70+V72+((V74+V76)*0.5)","v":0},null,null,null,null,null,null,"人",null,{"$f":"(AE68*2)+AE70+AE72+((AE74+AE76)*0.5)","v":0},null,null,null,null,null,null,"人",null,{"$f":"(AN68*2)+AN70+AN72+((AN74+AN76)*0.5)","v":0},null,null,null,null,null,null,"人",null,{"$f":"(AW68*2)+AW70+AW72+((AW74+AW76)*0.5)","v":0},null,null,null,null,null,null,"人",null,{"$f":"(BF68*2)+BF70+BF72+((BF74+BF76)*0.5)","v":0},null,null,null,null,null,null,"人",null,null,null,null,null,null,null,null,null,null,null,null,null,null,null,null,null,null,null,null,null,null,null,null,null,null,null,null,null,null,null,null,null,null,null,null,null,null,null,null,null,null,null,null,null,null,null,null,null,null,null,null,null,null,null,null,null,null,null,null,null,null,null,"0","0","0","0","0","0"]
[null,null,null,"  ［(ﾙ×2)+ｦ+ﾜ+((ｶ+ﾖ)×0.5)］",null,null,null,null,null,null,null,"（",{"$f":"(M69*2)+M71+M73+((M75+M77)*0.5)","v":0},null,null,null,null,null,null,"）","（",{"$f":"(V69*2)+V71+V73+((V75+V77)*0.5)","v":0},null,null,null,null,null,null,"）","（",{"$f":"(AE69*2)+AE71+AE73+((AE75+AE77)*0.5)","v":0},null,null,null,null,null,null,"）","（",{"$f":"(AN69*2)+AN71+AN73+((AN75+AN77)*0.5)","v":0},null,null,null,null,null,null,"）","（",{"$f":"(AW69*2)+AW71+AW73+((AW75+AW77)*0.5)","v":0},null,null,null,null,null,null,"）","（",{"$f":"(BF69*2)+BF71+BF73+((BF75+BF77)*0.5)","v":0},null,null,null,null,null,null,"）",null,null,null,null,null,null,null,null,null,null,null,null,null,null,null,null,null,null,null,null,null,null,null,null,null,null,null,null,null,null,null,null,null,null,null,null,null,null,null,null,null,null,null,null,null,null,null,null,null,null,null,null,null,null,null,null,null,null,null,null,null,null,null,"0","0","0","0","0","0"]
[null,null,null,"(ﾚ)精神障害者の数",null,null,null,null,null,null,null,null,{"$f":"V80+AE80+AN80+AW80+BF80+CL47","v":0},null,null,null,null,null,null,"人",null,null,null,null,null,null,null,null,"人",null,null,null,null,null,null,null,null,"人",null,null,null,null,null,null,null,null,"人",null,null,null,null,null,null,null,null,"人",null,null,null,null,null,null,null,null,"人",null,null,null,null,null,null,null,null,null,null,null,null,null,null,null,null,null,null,null,null,null,null,null,null,null,null,null,null,null,null,null,null,null,null,null,null,null,null,null,null,null,null,null,null,null,null,null,null,null,null,null,null,null,null,null,null,null,null,null,null,null,null,null,"0","","","","",""]
[null,null,null,null,null,null,null,null,null,null,null,"（",{"$f":"V81+AE81+AN81+AW81+BF81+CM47","v":0},null,null,null,null,null,null,"）","（",null,null,null,null,null,null,null,"）","（",null,null,null,null,null,null,null,"）","（",null,null,null,null,null,null,null,"）","（",null,null,null,null,null,null,null,"）","（",null,null,null,null,null,null,null,"）",null,null,null,null,null,null,null,null,null,null,null,null,null,null,null,null,null,null,null,null,null,null,null,null,null,null,null,null,null,null,null,null,null,null,null,null,null,null,null,null,null,null,null,null,null,null,null,null,null,null,null,null,null,null,null,null,null,null,null,null,null,null,null,"0","","","","",""]
[null,null,null,"(ｿ)精神障害者である\n   短時間労働者の数",null,null,null,null,null,null,null,null,{"$f":"V82+AE82+AN82+AW82+BF82+CN47","v":0},null,null,null,null,null,null,"人",null,null,null,null,null,null,null,null,"人",null,null,null,null,null,null,null,null,"人",null,null,null,null,null,null,null,null,"人",null,null,null,null,null,null,null,null,"人",null,null,null,null,null,null,null,null,"人",null,null,null,null,null,null,null,null,null,null,null,null,null,null,null,null,null,null,null,null,null,null,null,null,null,null,null,null,null,null,null,null,null,null,null,null,null,null,null,null,null,null,null,null,null,null,null,null,null,null,null,null,null,null,null,null,null,null,null,null,null,null,null,"0","","","","",""]
[null,null,null,null,null,null,null,null,null,null,null,"（",{"$f":"V83+AE83+AN83+AW83+BF83+CO47","v":0},null,null,null,null,null,null,"）","（",null,null,null,null,null,null,null,"）","（",null,null,null,null,null,null,null,"）","（",null,null,null,null,null,null,null,"）","（",null,null,null,null,null,null,null,"）","（",null,null,null,null,null,null,null,"）",null,null,null,null,null,null,null,null,null,null,null,null,null,null,null,null,null,null,null,null,null,null,null,null,null,null,null,null,null,null,null,null,null,null,null,null,null,null,null,null,null,null,null,null,null,null,null,null,null,null,null,null,null,null,null,null,null,null,null,null,null,null,null,"0","","","","",""]
[null,null,null,"(ﾂ)精神障害者である\n   特定短時間労働者の数",null,null,null,null,null,null,null,null,{"$f":"V84+AE84+AN84+AW84+BF84+CP47","v":0},null,null,null,null,null,null,"人",null,null,null,null,null,null,null,null,"人",null,null,null,null,null,null,null,null,"人",null,null,null,null,null,null,null,null,"人",null,null,null,null,null,null,null,null,"人",null,null,null,null,null,null,null,null,"人",null,null,null,null,null,null,null,null,null,null,null,null,null,null,null,null,null,null,null,null,null,null,null,null,null,null,null,null,null,null,null,null,null,null,null,null,null,null,null,null,null,null,null,null,null,null,null,null,null,null,null,null,null,null,null,null,null,null,null,null,null,null,null,{"$f":"M84&\"\"","v":"0"},{"$f":"V84&\"\"","v":""},{"$f":"AE84&\"\"","v":""},{"$f":"AN84&\"\"","v":""},{"$f":"AW84&\"\"","v":""},{"$f":"BF84&\"\"","v":""}]
[null,null,null,null,null,null,null,null,null,null,null,"（",{"$f":"V85+AE85+AN85+AW85+BF85+CQ47","v":0},null,null,null,null,null,null,"）","（",null,null,null,null,null,null,null,"）","（",null,null,null,null,null,null,null,"）","（",null,null,null,null,null,null,null,"）","（",null,null,null,null,null,null,null,"）","（",null,null,null,null,null,null,null,"）",null,null,null,null,null,null,null,null,null,null,null,null,null,null,null,null,null,null,null,null,null,null,null,null,null,null,null,null,null,null,null,null,null,null,null,null,null,null,null,null,null,null,null,null,null,null,null,null,null,null,null,null,null,null,null,null,null,null,null,null,null,null,null,"0","","","","",""]
[null,null,null,"(ﾈ)精神障害者の数",null,null,null,null,null,null,null,null,{"$f":"M80+M82+M84*0.5","v":0},null,null,null,null,null,null,"人",null,{"$f":"V80+V82+V84*0.5","v":0},null,null,null,null,null,null,"人",null,{"$f":"AE80+AE82+AE84*0.5","v":0},null,null,null,null,null,null,"人",null,{"$f":"AN80+AN82+AN84*0.5","v":0},null,null,null,null,null,null,"人",null,{"$f":"AW80+AW82+AW84*0.5","v":0},null,null,null,null,null,null,"人",null,{"$f":"BF80+BF82+BF84*0.5","v":0},null,null,null,null,null,null,"人",null,null,null,null,null,null,null,null,null,null,null,null,null,null,null,null,null,null,null,null,null,null,null,null,null,null,null,null,null,null,null,null,null,null,null,null,null,null,null,null,null,null,null,null,null,null,null,null,null,null,null,null,null,null,null,null,null,null,null,null,null,null,null,"0","0","0","0","0","0"]
[null,null,null,"　［ﾚ+ｿ+(ﾂ×0.5)］",null,null,null,null,null,null,null,"（",{"$f":"M81+M83+M85*0.5","v":0},null,null,null,null,null,null,"）","（",{"$f":"V81+V83+V85*0.5","v":0},null,null,null,null,null,null,"）","（",{"$f":"AE81+AE83+AE85*0.5","v":0},null,null,null,null,null,null,"）","（",{"$f":"AN81+AN83+AN85*0.5","v":0},null,null,null,null,null,null,"）","（",{"$f":"AW81+AW83+AW85*0.5","v":0},null,null,null,null,null,null,"）","（",{"$f":"BF81+BF83+BF85*0.5","v":0},null,null,null,null,null,null,"）",null,null,null,null,null,null,null,null,null,null,null,null,null,null,null,null,null,null,null,null,null,null,null,null,null,null,null,null,null,null,null,null,null,null,null,null,null,null,null,null,null,null,null,null,null,null,null,null,null,null,null,null,null,null,null,null,null,null,null,null,null,null,null,"0","0","0","0","0","0"]
[null,null,"(21)　　　     計",null,null,null,null,null,null,null,null,null,{"$f":"M66+M78+M86","v":0},null,null,null,null,null,null,"人",null,{"$f":"V66+V78+V86","v":0},null,null,null,null,null,null,"人",null,{"$f":"AE66+AE78+AE86","v":0},null,null,null,null,null,null,"人",null,{"$f":"AN66+AN78+AN86","v":0},null,null,null,null,null,null,"人",null,{"$f":"AW66+AW78+AW86","v":0},null,null,null,null,null,null,"人",null,{"$f":"BF66+BF78+BF86","v":0},null,null,null,null,null,null,"人",null,null,null,null,null,null,null,null,null,null,null,null,null,null,null,null,null,null,null,null,null,null,null,null,null,null,null,null,null,null,null,null,null,null,null,null,null,null,null,null,null,null,null,null,null,null,null,null,null,null,null,null,null,null,null,null,null,null,null,null,null,null,null,"0","0","0","0","0","0"]
[null,null,"  　［(20)のﾇ+(20)のﾀ+(20)のﾈ］",null,null,null,null,null,null,null,null,"（",{"$f":"M67+M79+M87","v":0},null,null,null,null,null,null,"）","（",{"$f":"V67+V79+V87","v":0},null,null,null,null,null,null,"）","（",{"$f":"AE67+AE79+AE87","v":0},null,null,null,null,null,null,"）","（",{"$f":"AN67+AN79+AN87","v":0},null,null,null,null,null,null,"）","（",{"$f":"AW67+AW79+AW87","v":0},null,null,null,null,null,null,"）","（",{"$f":"BF67+BF79+BF87","v":0},null,null,null,null,null,null,"）",null,null,null,null,null,null,null,null,null,null,null,null,null,null,null,null,null,null,null,null,null,null,null,null,null,null,null,null,null,null,null,null,null,null,null,null,null,null,null,null,null,null,null,null,null,null,null,null,null,null,null,null,null,null,null,null,null,null,null,null,null,null,null,"0","0","0","0","0","0"]
[null,null,"(22)実雇用率  ",null,null,null,null,null,null,null,null,{"$f":"IF( OR(M53=0,M53=\"\"),0,ROUND(M88/M53*100,2))","v":0},null,null,null,null,null,null,null,"％","(23)身体障害者、知的障害者又は精神障害者の不足数",null,null,null,null,null,null,null,null,null,null,null,null,null,null,null,null,null,null,null,null,null,null,null,null,null,null,null,null,null,null,null,null,null,null,"人",null,null,null,null,null,null,null,null,null,null,null,null,null,null,null,null,null,null,null,null,null,null,null,null,null,null,null,null,null,null,null,null,null,null,null,null,null,null,null,null,null,null,null,null,null,null,null,null,null,null,null,null,null,null,null,null,null,null,null,null,null,null,null,null,null,null,null,null,null,null,null,null,"","","","","",""]
[null,null,"   ((21)/(19)のﾆ×100) ",null,null,null,null,null,null,null,null,null,null,null,null,null,null,null,null,null,"［((19)のﾆ×法定雇用率)-(21)］"]
[null,"Ｅ　障害者の雇用の促進等に関する法律別表に掲げる種類別の身体障害者数"]
[null,"視覚障害者（第１号に該当する者）",null,null,null,null,null,null,null,null,null,null,{"$f":"V93+AE93+AN93+AW93+BF93+CR47","v":0},null,null,null,null,null,null,"人",null,null,null,null,null,null,null,null,"人",null,null,null,null,null,null,null,null,"人",null,null,null,null,null,null,null,null,"人",null,null,null,null,null,null,null,null,"人",null,null,null,null,null,null,null,null,"人"]
[null,"聴覚又は平衡機能障害者\n（第２号に該当する者）",null,null,null,null,null,null,null,null,null,null,{"$f":"V94+AE94+AN94+AW94+BF94+CS47","v":0},null,null,null,null,null,null,"人",null,null,null,null,null,null,null,null,"人",null,null,null,null,null,null,null,null,"人",null,null,null,null,null,null,null,null,"人",null,null,null,null,null,null,null,null,"人",null,null,null,null,null,null,null,null,"人"]
[null,"音声・言語・そしゃく機能障害者\n（第３号に該当する者）",null,null,null,null,null,null,null,null,null,null,{"$f":"V95+AE95+AN95+AW95+BF95+CT47","v":0},null,null,null,null,null,null,"人",null,null,null,null,null,null,null,null,"人",null,null,null,null,null,null,null,null,"人",null,null,null,null,null,null,null,null,"人",null,null,null,null,null,null,null,null,"人",null,null,null,null,null,null,null,null,"人"]
[null,"肢体不自由者（第４号に該当する者）",null,null,null,null,null,null,null,null,null,null,{"$f":"V96+AE96+AN96+AW96+BF96+CU47","v":0},null,null,null,null,null,null,"人",null,null,null,null,null,null,null,null,"人",null,null,null,null,null,null,null,null,"人",null,null,null,null,null,null,null,null,"人",null,null,null,null,null,null,null,null,"人",null,null,null,null,null,null,null,null,"人"]
[null,"内部障害者（第５号に該当する者）",null,null,null,null,null,null,null,null,null,null,{"$f":"V97+AE97+AN97+AW97+BF97+CV47","v":0},null,null,null,null,null,null,"人",null,null,null,null,null,null,null,null,"人",null,null,null,null,null,null,null,null,"人",null,null,null,null,null,null,null,null,"人",null,null,null,null,null,null,null,null,"人",null,null,null,null,null,null,null,null,"人"]
[null,"   （記載上の留意事項は、記載要領にあります。）"]
[]
[]
[]
[null,null,null,null,null,null,null,null,null,null,null,null,null,null,null,"障害者雇用状況報告書\n（法第45条の２の認定を受けた事業主用、事業主別）"]
[]
[]
[]
[null,"　Ｃ　雇用の状況","区     分",null,null,null,null,null,null,null,null,"Ｄ　事業所別の内訳"]
[null,null,"(13)適用事業所番号",null,null,null,null,null,null,null,null,null,null,"―",null,null,null,null,"―",null,null,null,null,null,"―",null,null,null,null,"―",null,null,null,null,null,"―",null,null,null,"―",null,null,null,null,null,null,"―",null,null,null,null,"―",null,null,null,null,null,"―",null,null,null,null,"―",null,null,null,null,null,null,null,null,null,null,null,null,null,null,null,null,null,null,null,null,null,null,null,null,null,null,null,null,null,null,null,null,null,null,null,null,null,null,null,null,null,null,null,null,null,null,null,null,null,null,null,null,null,null,null,null,null,null,null,{"$f":"L107&\"\"","v":""},{"$f":"U107&\"\"","v":""},{"$f":"AD107&\"\"","v":"―"},{"$f":"AM107&\"\"","v":""},{"$f":"AV107&\"\"","v":""},{"$f":"BE107&\"\"","v":""}]
[null,null,"(14)事業所の名称",null,null,null,null,null,null,null,null,null,null,null,null,null,null,null,null,null,null,null,null,null,null,null,null,null,null,null,null,null,null,null,null,null,null,null,null,null,null,null,null,null,null,null,null,null,null,null,null,null,null,null,null,null,null,null,null,null,null,null,null,null,null,null,null,null,null,null,null,null,null,null,null,null,null,null,null,null,null,null,null,null,null,null,null,null,null,null,null,null,null,null,null,null,null,null,null,null,null,null,null,null,null,null,null,null,null,null,null,null,null,null,null,null,null,null,null,null,null,null,{"$f":"O107&\"\"","v":""},{"$f":"X107&\"\"","v":""},{"$f":"AG107&\"\"","v":""},{"$f":"AP107&\"\"","v":""},{"$f":"AY107&\"\"","v":""},{"$f":"BH107&\"\"","v":""}]
[null,null,null,null,null,null,null,null,null,null,null,null,null,null,null,null,null,null,null,null,null,null,null,null,null,null,null,null,null,null,null,null,null,null,null,null,null,null,null,null,null,null,null,null,null,null,null,null,null,null,null,null,null,null,null,null,null,null,null,null,null,null,null,null,null,null,null,null,null,null,null,null,null,null,null,null,null,null,null,null,null,null,null,null,null,null,null,null,null,null,null,null,null,null,null,null,null,null,null,null,null,null,null,null,null,null,null,null,null,null,null,null,null,null,null,null,null,null,null,null,null,null,{"$f":"T107&\"\"","v":""},{"$f":"AC107&\"\"","v":""},{"$f":"AL107&\"\"","v":""},{"$f":"AU107&\"\"","v":"―"},{"$f":"BD107&\"\"","v":""},{"$f":"BM107&\"\"","v":""}]
[null,null,null,null,null,null,null,null,null,null,null,null,null,null,null,null,null,null,null,null,null,null,null,null,null,null,null,null,null,null,null,null,null,null,null,null,null,null,null,null,null,null,null,null,null,null,null,null,null,null,null,null,null,null,null,null,null,null,null,null,null,null,null,null,null,null,null,null,null,null,null,null,null,null,null,null,null,null,null,null,null,null,null,null,null,null,null,null,null,null,null,null,null,null,null,null,null,null,null,null,null,null,null,null,null,null,null,null,null,null,null,null,null,null,null,null,null,null,null,null,null,null,{"$f":"L108&\"\"","v":""},{"$f":"U108&\"\"","v":""},{"$f":"AD108&\"\"","v":""},{"$f":"AM108&\"\"","v":""},{"$f":"AV108&\"\"","v":""},{"$f":"BE108&\"\"","v":""}]
[]
[null,null,"(15)事業所の区分\n　１　指定就労継続支援Ａ型事業所\n　２　上記１以外"]
[]
[]
[]
[null,null,"(16)事業所の所在地",null,null,null,null,null,null,null,null,null,null,null,null,null,null,null,null,null,null,null,null,null,null,null,null,null,null,null,null,null,null,null,null,null,null,null,null,null,null,null,null,null,null,null,null,null,null,null,null,null,null,null,null,null,null,null,null,null,null,null,null,null,null,null,null,null,null,null,null,null,null,null,null,null,null,null,null,null,null,null,null,null,null,null,null,null,null,null,null,null,null,null,null,null,null,null,null,null,null,null,null,null,null,null,null,null,null,null,null,null,null,null,null,null,null,null,null,null,null,null,{"$f":"L116&\"\"","v":""},{"$f":"U116&\"\"","v":""},{"$f":"AD116&\"\"","v":""},{"$f":"AM116&\"\"","v":""},{"$f":"AV116&\"\"","v":""},{"$f":"BE116&\"\"","v":""}]
[]
[]
[]
[null,null,"(17)事業の内容",null,null,null,null,null,null,null,null,null,null,null,null,null,null,null,null,null,null,null,null,null,null,null,null,null,null,null,null,null,null,null,null,null,null,null,null,null,null,null,null,null,null,null,null,null,null,null,null,null,null,null,null,null,null,null,null,null,null,null,null,null,null,null,null,null,null,null,null,null,null,null,null,null,null,null,null,null,null,null,null,null,null,null,null,null,null,null,null,null,null,null,null,null,null,null,null,null,null,null,null,null,null,null,null,null,null,null,null,null,null,null,null,null,null,null,null,null,null,null,{"$f":"L120&\"\"","v":""},{"$f":"U120&\"\"","v":""},{"$f":"AD120&\"\"","v":""},{"$f":"AM120&\"\"","v":""},{"$f":"AV120&\"\"","v":""},{"$f":"BE120&\"\"","v":""}]
[]
[]
[]
[null,null,"(18)除外率",null,null,null,null,null,null,null,null,null,null,null,null,null,null,null,null,null,"％",null,null,null,null,null,null,null,null,null,"％",null,null,null,null,null,null,null,null,null,null,null,"％",null,null,null,null,null,null,null,null,null,null,"％",null,null,null,null,null,null,null,null,null,null,"％",null,{"$f":"M127+W127+AH127+AS127+BE127","v":0},{"$f":"M128+W128+AH128+AS128+BE128","v":0},{"$f":"M130+W130+AH130+AS130+BE130","v":0},{"$f":"M133+W133+AH133+AS133+BE133","v":0},{"$f":"M134+W134+AH134+AS134+BE134","v":0},{"$f":"M135+W135+AH135+AS135+BE135","v":0},{"$f":"M136+W136+AH136+AS136+BE136","v":0},{"$f":"M137+W137+AH137+AS137+BE137","v":0},{"$f":"M138+W138+AH138+AS138+BE138","v":0},{"$f":"M139+W139+AH139+AS139+BE139","v":0},{"$f":"M140+W140+AH140+AS140+BE140","v":0},{"$f":"M141+W141+AH141+AS141+BE141","v":0},{"$f":"M142+W142+AH142+AS142+BE142","v":0},{"$f":"M145+W145+AH145+AS145+BE145","v":0},{"$f":"M146+W146+AH146+AS146+BE146","v":0},{"$f":"M147+W147+AH147+AS147+BE147","v":0},{"$f":"M148+W148+AH148+AS148+BE148","v":0},{"$f":"M149+W149+AH149+AS149+BE149","v":0},{"$f":"M150+W150+AH150+AS150+BE150","v":0},{"$f":"M151+W151+AH151+AS151+BE151","v":0},{"$f":"M152+W152+AH152+AS152+BE152","v":0},{"$f":"M153+W153+AH153+AS153+BE153","v":0},{"$f":"M154+W154+AH154+AS154+BE154","v":0},{"$f":"M157+W157+AH157+AS157+BE157","v":0},{"$f":"M158+W158+AH158+AS158+BE158","v":0},{"$f":"M159+W159+AH159+AS159+BE159","v":0},{"$f":"M160+W160+AH160+AS160+BE160","v":0},{"$f":"M161+W161+AH161+AS161+BE161","v":0},{"$f":"M162+W162+AH162+AS162+BE162","v":0},{"$f":"M168+W168+AH168+AS168+BE168","v":0},{"$f":"M169+W169+AH169+AS169+BE169","v":0},{"$f":"M170+W170+AH170+AS170+BE170","v":0},{"$f":"M171+W171+AH171+AS171+BE171","v":0},{"$f":"M172+W172+AH172+AS172+BE172","v":0},null,null,null,null,null,null,null,null,null,null,null,null,null,null,null,null,null,null,null,null,null,null,{"$f":"L124&\"\"","v":""},{"$f":"U124&\"\"","v":"％"},{"$f":"AD124&\"\"","v":""},{"$f":"AM124&\"\"","v":""},{"$f":"AV124&\"\"","v":""},{"$f":"BE124&\"\"","v":""}]
[null,null,"(19)常用雇用労働者の数"]
[]
[null,null,null,"(ｲ)常用雇用労働者の数",null,null,null,null,null,null,null,null,null,null,null,null,null,null,null,null,"人",null,null,null,null,null,null,null,null,null,"人",null,null,null,null,null,null,null,null,null,null,null,"人",null,null,null,null,null,null,null,null,null,null,"人",null,null,null,null,null,null,null,null,null,null,"人",null,null,null,null,null,null,null,null,null,null,null,null,null,null,null,null,null,null,null,null,null,null,null,null,null,null,null,null,null,null,null,null,null,null,null,null,null,null,null,null,null,null,null,null,null,null,null,null,null,null,null,null,null,null,null,null,null,{"$f":"M127&\"\"","v":""},{"$f":"V127&\"\"","v":""},{"$f":"AE127&\"\"","v":"人"},{"$f":"AN127&\"\"","v":""},{"$f":"AW127&\"\"","v":""},{"$f":"BF127&\"\"","v":""}]
[null,null,null,"(ﾛ)短時間労働者の数",null,null,null,null,null,null,null,null,null,null,null,null,null,null,null,null,"人",null,null,null,null,null,null,null,null,null,"人",null,null,null,null,null,null,null,null,null,null,null,"人",null,null,null,null,null,null,null,null,null,null,"人",null,null,null,null,null,null,null,null,null,null,"人",null,null,null,null,null,null,null,null,null,null,null,null,null,null,null,null,null,null,null,null,null,null,null,null,null,null,null,null,null,null,null,null,null,null,null,null,null,null,null,null,null,null,null,null,null,null,null,null,null,null,null,null,null,null,null,null,null,{"$f":"M128&\"\"","v":""},{"$f":"V128&\"\"","v":""},{"$f":"AE128&\"\"","v":"人"},{"$f":"AN128&\"\"","v":""},{"$f":"AW128&\"\"","v":""},{"$f":"BF128&\"\"","v":""}]
[null,null,null,"(ﾊ)常用雇用労働者の数［ｲ+(ﾛ×0.5)］",null,null,null,null,null,null,null,null,{"$f":"M127+M128*0.5","v":0},null,null,null,null,null,null,null,"人",null,{"$f":"W127+W128*0.5","v":0},null,null,null,null,null,null,null,"人",null,null,{"$f":"AH127+AH128*0.5","v":0},null,null,null,null,null,null,null,null,"人",null,{"$f":"AS127+AS128*0.5","v":0},null,null,null,null,null,null,null,null,"人",null,null,{"$f":"BE127+BE128*0.5","v":0},null,null,null,null,null,null,null,"人",null,null,null,null,null,null,null,null,null,null,null,null,null,null,null,null,null,null,null,null,null,null,null,null,null,null,null,null,null,null,null,null,null,null,null,null,null,null,null,null,null,null,null,null,null,null,null,null,null,null,null,null,null,null,null,null,null,null,null,null,null,null,null,{"$f":"M129&\"\"","v":"0"},{"$f":"V129&\"\"","v":""},{"$f":"AE129&\"\"","v":"人"},{"$f":"AN129&\"\"","v":""},{"$f":"AW129&\"\"","v":""},{"$f":"BF129&\"\"","v":""}]
[null,null,null,"(ﾆ)法定雇用障害者の算定の基礎と\n   なる労働者の数",null,null,null,null,null,null,null,null,null,null,null,null,null,null,null,null,"人",null,null,null,null,null,null,null,null,null,"人",null,null,null,null,null,null,null,null,null,null,null,"人",null,null,null,null,null,null,null,null,null,null,"人",null,null,null,null,null,null,null,null,null,null,"人",null,null,null,null,null,null,null,null,null,null,null,null,null,null,null,null,null,null,null,null,null,null,null,null,null,null,null,null,null,null,null,null,null,null,null,null,null,null,null,null,null,null,null,null,null,null,null,null,null,null,null,null,null,null,null,null,null,{"$f":"M130&\"\"","v":""},{"$f":"V130&\"\"","v":""},{"$f":"AE130&\"\"","v":"人"},{"$f":"AN130&\"\"","v":""},{"$f":"AW130&\"\"","v":""},{"$f":"BF130&\"\"","v":""}]
[null,null,"(20)常用雇用身体障害者、知的障害者及び精神障害者の数"]
[]
[null,null,null,"(ﾎ)重度身体障害者の数",null,null,null,null,null,null,null,null,null,null,null,null,null,null,null,null,"人",null,null,null,null,null,null,null,null,null,"人",null,null,null,null,null,null,null,null,null,null,null,"人",null,null,null,null,null,null,null,null,null,null,"人",null,null,null,null,null,null,null,null,null,null,"人",null,null,null,null,null,null,null,null,null,null,null,null,null,null,null,null,null,null,null,null,null,null,null,null,null,null,null,null,null,null,null,null,null,null,null,null,null,null,null,null,null,null,null,null,null,null,null,null,null,null,null,null,null,null,null,null,null,{"$f":"M133&\"\"","v":""},{"$f":"V133&\"\"","v":""},{"$f":"AE133&\"\"","v":"人"},{"$f":"AN133&\"\"","v":""},{"$f":"AW133&\"\"","v":""},{"$f":"BF133&\"\"","v":""}]
[null,null,null,null,null,null,null,null,null,null,null,"（",null,null,null,null,null,null,null,null,"）","（",null,null,null,null,null,null,null,null,"）",null,"（",null,null,null,null,null,null,null,null,null,"）","（",null,null,null,null,null,null,null,null,null,"）",null,"（",null,null,null,null,null,null,null,null,"）",null,null,null,null,null,null,null,null,null,null,null,null,null,null,null,null,null,null,null,null,null,null,null,null,null,null,null,null,null,null,null,null,null,null,null,null,null,null,null,null,null,null,null,null,null,null,null,null,null,null,null,null,null,null,null,null,null,"",{"$f":"V134&\"\"","v":"（"},{"$f":"#REF!&\"\"","v":{"$error":"#REF!"}},{"$f":"AN134&\"\"","v":""},{"$f":"AW134&\"\"","v":""},{"$f":"BF134&\"\"","v":""}]
[null,null,null,"(ﾍ)重度身体障害者以外の\n   身体障害者の数",null,null,null,null,null,null,null,null,null,null,null,null,null,null,null,null,"人",null,null,null,null,null,null,null,null,null,"人",null,null,null,null,null,null,null,null,null,null,null,"人",null,null,null,null,null,null,null,null,null,null,"人",null,null,null,null,null,null,null,null,null,null,"人",null,null,null,null,null,null,null,null,null,null,null,null,null,null,null,null,null,null,null,null,null,null,null,null,null,null,null,null,null,null,null,null,null,null,null,null,null,null,null,null,null,null,null,null,null,null,null,null,null,null,null,null,null,null,null,null,null,"","",{"$f":"AE135&\"\"","v":"人"},"","",""]
[null,null,null,null,null,null,null,null,null,null,null,"（",null,null,null,null,null,null,null,null,"）","（",null,null,null,null,null,null,null,null,"）",null,"（",null,null,null,null,null,null,null,null,null,"）","（",null,null,null,null,null,null,null,null,null,"）",null,"（",null,null,null,null,null,null,null,null,"）",null,null,null,null,null,null,null,null,null,null,null,null,null,null,null,null,null,null,null,null,null,null,null,null,null,null,null,null,null,null,null,null,null,null,null,null,null,null,null,null,null,null,null,null,null,null,null,null,null,null,null,null,null,null,null,null,null,"","（",{"$f":"#REF!&\"\"","v":{"$error":"#REF!"}},"","",""]
[null,null,null,"(ﾄ)重度身体障害者である\n　 短時間労働者の数",null,null,null,null,null,null,null,null,null,null,null,null,null,null,null,null,"人",null,null,null,null,null,null,null,null,null,"人",null,null,null,null,null,null,null,null,null,null,null,"人",null,null,null,null,null,null,null,null,null,null,"人",null,null,null,null,null,null,null,null,null,null,"人",null,null,null,null,null,null,null,null,null,null,null,null,null,null,null,null,null,null,null,null,null,null,null,null,null,null,null,null,null,null,null,null,null,null,null,null,null,null,null,null,null,null,null,null,null,null,null,null,null,null,null,null,null,null,null,null,null,"",{"$f":"V137&\"\"","v":""},{"$f":"AE137&\"\"","v":"人"},{"$f":"AN137&\"\"","v":""},{"$f":"AW137&\"\"","v":""},{"$f":"BF137&\"\"","v":""}]
[null,null,null,null,null,null,null,null,null,null,null,"（",null,null,null,null,null,null,null,null,"）","（",null,null,null,null,null,null,null,null,"）",null,"（",null,null,null,null,null,null,null,null,null,"）","（",null,null,null,null,null,null,null,null,null,"）",null,"（",null,null,null,null,null,null,null,null,"）",null,null,null,null,null,null,null,null,null,null,null,null,null,null,null,null,null,null,null,null,null,null,null,null,null,null,null,null,null,null,null,null,null,null,null,null,null,null,null,null,null,null,null,null,null,null,null,null,null,null,null,null,null,null,null,null,null,"",{"$f":"V138&\"\"","v":"（"},{"$f":"#REF!&\"\"","v":{"$error":"#REF!"}},{"$f":"AN138&\"\"","v":""},{"$f":"AW138&\"\"","v":""},{"$f":"BF138&\"\"","v":""}]
[null,null,null,"(ﾁ)重度身体障害者以外の身体障害\n   者である短時間労働者の数",null,null,null,null,null,null,null,null,null,null,null,null,null,null,null,null,"人",null,null,null,null,null,null,null,null,null,"人",null,null,null,null,null,null,null,null,null,null,null,"人",null,null,null,null,null,null,null,null,null,null,"人",null,null,null,null,null,null,null,null,null,null,"人",null,null,null,null,null,null,null,null,null,null,null,null,null,null,null,null,null,null,null,null,null,null,null,null,null,null,null,null,null,null,null,null,null,null,null,null,null,null,null,null,null,null,null,null,null,null,null,null,null,null,null,null,null,null,null,null,null,"","","人","","",""]
[null,null,null,null,null,null,null,null,null,null,null,"（",null,null,null,null,null,null,null,null,"）","（",null,null,null,null,null,null,null,null,"）",null,"（",null,null,null,null,null,null,null,null,null,"）","（",null,null,null,null,null,null,null,null,null,"）",null,"（",null,null,null,null,null,null,null,null,"）",null,null,null,null,null,null,null,null,null,null,null,null,null,null,null,null,null,null,null,null,null,null,null,null,null,null,null,null,null,null,null,null,null,null,null,null,null,null,null,null,null,null,null,null,null,null,null,null,null,null,null,null,null,null,null,null,null,"",{"$f":"V140&\"\"","v":"（"},{"$f":"#REF!&\"\"","v":{"$error":"#REF!"}},"","",{"$f":"BF140&\"\"","v":""}]
[null,null,null,"(ﾘ)重度身体障害者である\n   特定短時間労働者の数",null,null,null,null,null,null,null,null,null,null,null,null,null,null,null,null,"人",null,null,null,null,null,null,null,null,null,"人",null,null,null,null,null,null,null,null,null,null,null,"人",null,null,null,null,null,null,null,null,null,null,"人",null,null,null,null,null,null,null,null,null,null,"人",null,null,null,null,null,null,null,null,null,null,null,null,null,null,null,null,null,null,null,null,null,null,null,null,null,null,null,null,null,null,null,null,null,null,null,null,null,null,null,null,null,null,null,null,null,null,null,null,null,null,null,null,null,null,null,null,null,{"$f":"M141&\"\"","v":""},{"$f":"V141&\"\"","v":""},{"$f":"AE141&\"\"","v":"人"},{"$f":"AN141&\"\"","v":""},{"$f":"AW141&\"\"","v":""},{"$f":"BF141&\"\"","v":""}]
[null,null,null,null,null,null,null,null,null,null,null,"（",null,null,null,null,null,null,null,null,"）","（",null,null,null,null,null,null,null,null,"）",null,"（",null,null,null,null,null,null,null,null,null,"）","（",null,null,null,null,null,null,null,null,null,"）",null,"（",null,null,null,null,null,null,null,null,"）",null,null,null,null,null,null,null,null,null,null,null,null,null,null,null,null,null,null,null,null,null,null,null,null,null,null,null,null,null,null,null,null,null,null,null,null,null,null,null,null,null,null,null,null,null,null,null,null,null,null,null,null,null,null,null,null,null,"",{"$f":"V142&\"\"","v":"（"},{"$f":"#REF!&\"\"","v":{"$error":"#REF!"}},"","",{"$f":"BF142&\"\"","v":""}]
[null,null,null,"(ﾇ)身体障害者の数",null,null,null,null,null,null,null,null,{"$f":"(M133*2)+M135+M137+((M139+M141)*0.5)","v":0},null,null,null,null,null,null,null,"人",null,{"$f":"(W133*2)+W135+W137+((W139+W141)*0.5)","v":0},null,null,null,null,null,null,null,"人",null,null,{"$f":"(AH133*2)+AH135+AH137+((AH139+AH141)*0.5)","v":0},null,null,null,null,null,null,null,null,"人",null,{"$f":"(AS133*2)+AS135+AS137+((AS139+AS141)*0.5)","v":0},null,null,null,null,null,null,null,null,"人",null,null,{"$f":"(BE133*2)+BE135+BE137+((BE139+BE141)*0.5)","v":0},null,null,null,null,null,null,null,"人",null,null,null,null,null,null,null,null,null,null,null,null,null,null,null,null,null,null,null,null,null,null,null,null,null,null,null,null,null,null,null,null,null,null,null,null,null,null,null,null,null,null,null,null,null,null,null,null,null,null,null,null,null,null,null,null,null,"0","","人","","",""]
[null,null,null,"  ［(ﾎ×2)+ﾍ+ﾄ+((ﾁ+ﾘ)×0.5)］",null,null,null,null,null,null,null,"（",{"$f":"(M134*2)+M136+M138+((M140+M142)*0.5)","v":0},null,null,null,null,null,null,null,"）","（",{"$f":"(W134*2)+W136+W138+((W140+W142)*0.5)","v":0},null,null,null,null,null,null,null,"）",null,"（",{"$f":"(AH134*2)+AH136+AH138+((AH140+AH142)*0.5)","v":0},null,null,null,null,null,null,null,null,"）","（",{"$f":"(AS134*2)+AS136+AS138+((AS140+AS142)*0.5)","v":0},null,null,null,null,null,null,null,null,"）",null,"（",{"$f":"(BE134*2)+BE136+BE138+((BE140+BE142)*0.5)","v":0},null,null,null,null,null,null,null,"）",null,null,null,null,null,null,null,null,null,null,null,null,null,null,null,null,null,null,null,null,null,null,null,null,null,null,null,null,null,null,null,null,null,null,null,null,null,null,null,null,null,null,null,null,null,null,null,null,null,null,null,null,null,null,null,null,null,"0","（","）","","",""]
[null,null,null,"(ﾙ)重度知的障害者の数",null,null,null,null,null,null,null,null,null,null,null,null,null,null,null,null,"人",null,null,null,null,null,null,null,null,null,"人",null,null,null,null,null,null,null,null,null,null,null,"人",null,null,null,null,null,null,null,null,null,null,"人",null,null,null,null,null,null,null,null,null,null,"人",null,null,null,null,null,null,null,null,null,null,null,null,null,null,null,null,null,null,null,null,null,null,null,null,null,null,null,null,null,null,null,null,null,null,null,null,null,null,null,null,null,null,null,null,null,null,null,null,null,null,null,null,null,null,null,null,null,"","","人","","",""]
[null,null,null,null,null,null,null,null,null,null,null,"（",null,null,null,null,null,null,null,null,"）","（",null,null,null,null,null,null,null,null,"）",null,"（",null,null,null,null,null,null,null,null,null,"）","（",null,null,null,null,null,null,null,null,null,"）",null,"（",null,null,null,null,null,null,null,null,"）",null,null,null,null,null,null,null,null,null,null,null,null,null,null,null,null,null,null,null,null,null,null,null,null,null,null,null,null,null,null,null,null,null,null,null,null,null,null,null,null,null,null,null,null,null,null,null,null,null,null,null,null,null,null,null,null,null,"","（",{"$f":"#REF!&\"\"","v":{"$error":"#REF!"}},"","",""]
[null,null,null,"(ｦ)重度知的障害者以外の\n   知的障害者の数",null,null,null,null,null,null,null,null,null,null,null,null,null,null,null,null,"人",null,null,null,null,null,null,null,null,null,"人",null,null,null,null,null,null,null,null,null,null,null,"人",null,null,null,null,null,null,null,null,null,null,"人",null,null,null,null,null,null,null,null,null,null,"人",null,null,null,null,null,null,null,null,null,null,null,null,null,null,null,null,null,null,null,null,null,null,null,null,null,null,null,null,null,null,null,null,null,null,null,null,null,null,null,null,null,null,null,null,null,null,null,null,null,null,null,null,null,null,null,null,null,"","","人","","",""]
[null,null,null,null,null,null,null,null,null,null,null,"（",null,null,null,null,null,null,null,null,"）","（",null,null,null,null,null,null,null,null,"）",null,"（",null,null,null,null,null,null,null,null,null,"）","（",null,null,null,null,null,null,null,null,null,"）",null,"（",null,null,null,null,null,null,null,null,"）",null,null,null,null,null,null,null,null,null,null,null,null,null,null,null,null,null,null,null,null,null,null,null,null,null,null,null,null,null,null,null,null,null,null,null,null,null,null,null,null,null,null,null,null,null,null,null,null,null,null,null,null,null,null,null,null,null,"","（",{"$f":"#REF!&\"\"","v":{"$error":"#REF!"}},"","",""]
[null,null,null,"(ﾜ)重度知的障害者である\n   短時間労働者の数",null,null,null,null,null,null,null,null,null,null,null,null,null,null,null,null,"人",null,null,null,null,null,null,null,null,null,"人",null,null,null,null,null,null,null,null,null,null,null,"人",null,null,null,null,null,null,null,null,null,null,"人",null,null,null,null,null,null,null,null,null,null,"人",null,null,null,null,null,null,null,null,null,null,null,null,null,null,null,null,null,null,null,null,null,null,null,null,null,null,null,null,null,null,null,null,null,null,null,null,null,null,null,null,null,null,null,null,null,null,null,null,null,null,null,null,null,null,null,null,null,"","","人","","",""]
[null,null,null,null,null,null,null,null,null,null,null,"（",null,null,null,null,null,null,null,null,"）","（",null,null,null,null,null,null,null,null,"）",null,"（",null,null,null,null,null,null,null,null,null,"）","（",null,null,null,null,null,null,null,null,null,"）",null,"（",null,null,null,null,null,null,null,null,"）",null,null,null,null,null,null,null,null,null,null,null,null,null,null,null,null,null,null,null,null,null,null,null,null,null,null,null,null,null,null,null,null,null,null,null,null,null,null,null,null,null,null,null,null,null,null,null,null,null,null,null,null,null,null,null,null,null,"","（",{"$f":"#REF!&\"\"","v":{"$error":"#REF!"}},"","",""]
[null,null,null,"(ｶ)重度知的障害者以外の知的障害\n   者である短時間労働者の数",null,null,null,null,null,null,null,null,null,null,null,null,null,null,null,null,"人",null,null,null,null,null,null,null,null,null,"人",null,null,null,null,null,null,null,null,null,null,null,"人",null,null,null,null,null,null,null,null,null,null,"人",null,null,null,null,null,null,null,null,null,null,"人",null,null,null,null,null,null,null,null,null,null,null,null,null,null,null,null,null,null,null,null,null,null,null,null,null,null,null,null,null,null,null,null,null,null,null,null,null,null,null,null,null,null,null,null,null,null,null,null,null,null,null,null,null,null,null,null,null,"","","人","","",""]
[null,null,null,null,null,null,null,null,null,null,null,"（",null,null,null,null,null,null,null,null,"）","（",null,null,null,null,null,null,null,null,"）",null,"（",null,null,null,null,null,null,null,null,null,"）","（",null,null,null,null,null,null,null,null,null,"）",null,"（",null,null,null,null,null,null,null,null,"）",null,null,null,null,null,null,null,null,null,null,null,null,null,null,null,null,null,null,null,null,null,null,null,null,null,null,null,null,null,null,null,null,null,null,null,null,null,null,null,null,null,null,null,null,null,null,null,null,null,null,null,null,null,null,null,null,null,"","（",{"$f":"#REF!&\"\"","v":{"$error":"#REF!"}},"","",""]
[null,null,null,"(ﾖ)重度知的障害者である\n   特定短時間労働者の数",null,null,null,null,null,null,null,null,null,null,null,null,null,null,null,null,"人",null,null,null,null,null,null,null,null,null,"人",null,null,null,null,null,null,null,null,null,null,null,"人",null,null,null,null,null,null,null,null,null,null,"人",null,null,null,null,null,null,null,null,null,null,"人",null,null,null,null,null,null,null,null,null,null,null,null,null,null,null,null,null,null,null,null,null,null,null,null,null,null,null,null,null,null,null,null,null,null,null,null,null,null,null,null,null,null,null,null,null,null,null,null,null,null,null,null,null,null,null,null,null,{"$f":"M153&\"\"","v":""},{"$f":"V153&\"\"","v":""},{"$f":"AE153&\"\"","v":"人"},{"$f":"AN153&\"\"","v":""},{"$f":"AW153&\"\"","v":""},{"$f":"BF153&\"\"","v":""}]
[null,null,null,null,null,null,null,null,null,null,null,"（",null,null,null,null,null,null,null,null,"）","（",null,null,null,null,null,null,null,null,"）",null,"（",null,null,null,null,null,null,null,null,null,"）","（",null,null,null,null,null,null,null,null,null,"）",null,"（",null,null,null,null,null,null,null,null,"）",null,null,null,null,null,null,null,null,null,null,null,null,null,null,null,null,null,null,null,null,null,null,null,null,null,null,null,null,null,null,null,null,null,null,null,null,null,null,null,null,null,null,null,null,null,null,null,null,null,null,null,null,null,null,null,null,null,"","（",{"$f":"#REF!&\"\"","v":{"$error":"#REF!"}},"","",""]
[null,null,null,"(ﾀ)知的障害者の数",null,null,null,null,null,null,null,null,{"$f":"(M145*2)+M147+M149+((M151+M153)*0.5)","v":0},null,null,null,null,null,null,null,"人",null,{"$f":"(W145*2)+W147+W149+((W151+W153)*0.5)","v":0},null,null,null,null,null,null,null,"人",null,null,{"$f":"(AH145*2)+AH147+AH149+((AH151+AH153)*0.5)","v":0},null,null,null,null,null,null,null,null,"人",null,{"$f":"(AS145*2)+AS147+AS149+((AS151+AS153)*0.5)","v":0},null,null,null,null,null,null,null,null,"人",null,null,{"$f":"(BE145*2)+BE147+BE149+((BE151+BE153)*0.5)","v":0},null,null,null,null,null,null,null,"人",null,null,null,null,null,null,null,null,null,null,null,null,null,null,null,null,null,null,null,null,null,null,null,null,null,null,null,null,null,null,null,null,null,null,null,null,null,null,null,null,null,null,null,null,null,null,null,null,null,null,null,null,null,null,null,null,null,{"$f":"M155&\"\"","v":"0"},"","人","","",""]
[null,null,null,"  ［(ﾙ×2)+ｦ+ﾜ+((ｶ+ﾖ)×0.5)］",null,null,null,null,null,null,null,"（",{"$f":"(M146*2)+M148+M150+((M152+M154)*0.5)","v":0},null,null,null,null,null,null,null,"）","（",{"$f":"(W146*2)+W148+W150+((W152+W154)*0.5)","v":0},null,null,null,null,null,null,null,"）",null,"（",{"$f":"(AH146*2)+AH148+AH150+((AH152+AH154)*0.5)","v":0},null,null,null,null,null,null,null,null,"）","（",{"$f":"(AS146*2)+AS148+AS150+((AS152+AS154)*0.5)","v":0},null,null,null,null,null,null,null,null,"）",null,"（",{"$f":"(BE146*2)+BE148+BE150+((BE152+BE154)*0.5)","v":0},null,null,null,null,null,null,null,"）",null,null,null,null,null,null,null,null,null,null,null,null,null,null,null,null,null,null,null,null,null,null,null,null,null,null,null,null,null,null,null,null,null,null,null,null,null,null,null,null,null,null,null,null,null,null,null,null,null,null,null,null,null,null,null,null,null,"0","（","）","","",""]
[null,null,null,"(ﾚ)精神障害者の数",null,null,null,null,null,null,null,null,null,null,null,null,null,null,null,null,"人",null,null,null,null,null,null,null,null,null,"人",null,null,null,null,null,null,null,null,null,null,null,"人",null,null,null,null,null,null,null,null,null,null,"人",null,null,null,null,null,null,null,null,null,null,"人",null,null,null,null,null,null,null,null,null,null,null,null,null,null,null,null,null,null,null,null,null,null,null,null,null,null,null,null,null,null,null,null,null,null,null,null,null,null,null,null,null,null,null,null,null,null,null,null,null,null,null,null,null,null,null,null,null,"",{"$f":"V157&\"\"","v":""},{"$f":"AE157&\"\"","v":"人"},{"$f":"AN157&\"\"","v":""},{"$f":"AW157&\"\"","v":""},{"$f":"BF157&\"\"","v":""}]
[null,null,null,null,null,null,null,null,null,null,null,"（",null,null,null,null,null,null,null,null,"）","（",null,null,null,null,null,null,null,null,"）",null,"（",null,null,null,null,null,null,null,null,null,"）","（",null,null,null,null,null,null,null,null,null,"）",null,"（",null,null,null,null,null,null,null,null,"）",null,null,null,null,null,null,null,null,null,null,null,null,null,null,null,null,null,null,null,null,null,null,null,null,null,null,null,null,null,null,null,null,null,null,null,null,null,null,null,null,null,null,null,null,null,null,null,null,null,null,null,null,null,null,null,null,null,"",{"$f":"V158&\"\"","v":"（"},{"$f":"#REF!&\"\"","v":{"$error":"#REF!"}},{"$f":"AN158&\"\"","v":""},{"$f":"AW158&\"\"","v":""},{"$f":"BF158&\"\"","v":""}]
[null,null,null,"(ｿ)精神障害者である\n   短時間労働者の数",null,null,null,null,null,null,null,null,null,null,null,null,null,null,null,null,"人",null,null,null,null,null,null,null,null,null,"人",null,null,null,null,null,null,null,null,null,null,null,"人",null,null,null,null,null,null,null,null,null,null,"人",null,null,null,null,null,null,null,null,null,null,"人",null,null,null,null,null,null,null,null,null,null,null,null,null,null,null,null,null,null,null,null,null,null,null,null,null,null,null,null,null,null,null,null,null,null,null,null,null,null,null,null,null,null,null,null,null,null,null,null,null,null,null,null,null,null,null,null,null,"",{"$f":"V159&\"\"","v":""},{"$f":"AE159&\"\"","v":"人"},{"$f":"AN159&\"\"","v":""},{"$f":"AW159&\"\"","v":""},{"$f":"BF159&\"\"","v":""}]
[null,null,null,null,null,null,null,null,null,null,null,"（",null,null,null,null,null,null,null,null,"）","（",null,null,null,null,null,null,null,null,"）",null,"（",null,null,null,null,null,null,null,null,null,"）","（",null,null,null,null,null,null,null,null,null,"）",null,"（",null,null,null,null,null,null,null,null,"）",null,null,null,null,null,null,null,null,null,null,null,null,null,null,null,null,null,null,null,null,null,null,null,null,null,null,null,null,null,null,null,null,null,null,null,null,null,null,null,null,null,null,null,null,null,null,null,null,null,null,null,null,null,null,null,null,null,"",{"$f":"V160&\"\"","v":"（"},{"$f":"#REF!&\"\"","v":{"$error":"#REF!"}},{"$f":"AN160&\"\"","v":""},{"$f":"AW160&\"\"","v":""},{"$f":"BF160&\"\"","v":""}]
[null,null,null,"(ﾂ)精神障害者である\n   特定短時間労働者の数",null,null,null,null,null,null,null,null,null,null,null,null,null,null,null,null,"人",null,null,null,null,null,null,null,null,null,"人",null,null,null,null,null,null,null,null,null,null,null,"人",null,null,null,null,null,null,null,null,null,null,"人",null,null,null,null,null,null,null,null,null,null,"人",null,null,null,null,null,null,null,null,null,null,null,null,null,null,null,null,null,null,null,null,null,null,null,null,null,null,null,null,null,null,null,null,null,null,null,null,null,null,null,null,null,null,null,null,null,null,null,null,null,null,null,null,null,null,null,null,null,"",{"$f":"V161&\"\"","v":""},{"$f":"AE161&\"\"","v":"人"},{"$f":"AN161&\"\"","v":""},{"$f":"AW161&\"\"","v":""},{"$f":"BF161&\"\"","v":""}]
[null,null,null,null,null,null,null,null,null,null,null,"（",null,null,null,null,null,null,null,null,"）","（",null,null,null,null,null,null,null,null,"）",null,"（",null,null,null,null,null,null,null,null,null,"）","（",null,null,null,null,null,null,null,null,null,"）",null,"（",null,null,null,null,null,null,null,null,"）",null,null,null,null,null,null,null,null,null,null,null,null,null,null,null,null,null,null,null,null,null,null,null,null,null,null,null,null,null,null,null,null,null,null,null,null,null,null,null,null,null,null,null,null,null,null,null,null,null,null,null,null,null,null,null,null,null,"","（",{"$f":"#REF!&\"\"","v":{"$error":"#REF!"}},"","",""]
[null,null,null,"(ﾈ)精神障害者の数",null,null,null,null,null,null,null,null,{"$f":"M157+M159+M161*0.5","v":0},null,null,null,null,null,null,null,"人",null,{"$f":"W157+W159+W161*0.5","v":0},null,null,null,null,null,null,null,"人",null,null,{"$f":"AH157+AH159+AH161*0.5","v":0},null,null,null,null,null,null,null,null,"人",null,{"$f":"AS157+AS159+AS161*0.5","v":0},null,null,null,null,null,null,null,null,"人",null,null,{"$f":"BE157+BE159+BE161*0.5","v":0},null,null,null,null,null,null,null,"人",null,null,null,null,null,null,null,null,null,null,null,null,null,null,null,null,null,null,null,null,null,null,null,null,null,null,null,null,null,null,null,null,null,null,null,null,null,null,null,null,null,null,null,null,null,null,null,null,null,null,null,null,null,null,null,null,null,"0","","人","","",""]
[null,null,null,"　［ﾚ+ｿ+(ﾂ×0.5)］",null,null,null,null,null,null,null,"（",{"$f":"M158+M160+M162*0.5","v":0},null,null,null,null,null,null,null,"）","（",{"$f":"W158+W160+W162*0.5","v":0},null,null,null,null,null,null,null,"）",null,"（",{"$f":"AH158+AH160+AH162*0.5","v":0},null,null,null,null,null,null,null,null,"）","（",{"$f":"AS158+AS160+AS162*0.5","v":0},null,null,null,null,null,null,null,null,"）",null,"（",{"$f":"BE158+BE160+BE162*0.5","v":0},null,null,null,null,null,null,null,"）",null,null,null,null,null,null,null,null,null,null,null,null,null,null,null,null,null,null,null,null,null,null,null,null,null,null,null,null,null,null,null,null,null,null,null,null,null,null,null,null,null,null,null,null,null,null,null,null,null,null,null,null,null,null,null,null,null,"0","（","）","","",""]
[null,null,"(21)　　　     計",null,null,null,null,null,null,null,null,null,{"$f":"M143+M155+M163","v":0},null,null,null,null,null,null,null,"人",null,{"$f":"W143+W155+W163","v":0},null,null,null,null,null,null,null,"人",null,null,{"$f":"AH143+AH155+AH163","v":0},null,null,null,null,null,null,null,null,"人",null,{"$f":"AS143+AS155+AS163","v":0},null,null,null,null,null,null,null,null,"人",null,null,{"$f":"BE143+BE155+BE163","v":0},null,null,null,null,null,null,null,"人",null,null,null,null,null,null,null,null,null,null,null,null,null,null,null,null,null,null,null,null,null,null,null,null,null,null,null,null,null,null,null,null,null,null,null,null,null,null,null,null,null,null,null,null,null,null,null,null,null,null,null,null,null,null,null,null,null,"0",{"$f":"V165&\"\"","v":""},{"$f":"AE165&\"\"","v":"人"},{"$f":"AN165&\"\"","v":""},{"$f":"AW165&\"\"","v":""},{"$f":"BF165&\"\"","v":""}]
[null,null,"  　［(20)のﾇ+(20)のﾀ+(20)のﾈ］",null,null,null,null,null,null,null,null,"（",{"$f":"M144+M156+M164","v":0},null,null,null,null,null,null,null,"）","（",{"$f":"W144+W156+W164","v":0},null,null,null,null,null,null,null,"）",null,"（",{"$f":"AH144+AH156+AH164","v":0},null,null,null,null,null,null,null,null,"）","（",{"$f":"AS144+AS156+AS164","v":0},null,null,null,null,null,null,null,null,"）",null,"（",{"$f":"BE144+BE156+BE164","v":0},null,null,null,null,null,null,null,"）",null,null,null,null,null,null,null,null,null,null,null,null,null,null,null,null,null,null,null,null,null,null,null,null,null,null,null,null,null,null,null,null,null,null,null,null,null,null,null,null,null,null,null,null,null,null,null,null,null,null,null,null,null,null,null,null,null,"0",{"$f":"V166&\"\"","v":"（"},{"$f":"AE166&\"\"","v":"）"},{"$f":"AN166&\"\"","v":""},{"$f":"AW166&\"\"","v":""},{"$f":"BF166&\"\"","v":""}]
[null,"Ｅ　障害者の雇用の促進等に関する法律別表に掲げる種類別の身体障害者数"]
[null,"視覚障害者（第１号に該当する者）",null,null,null,null,null,null,null,null,null,null,null,null,null,null,null,null,null,null,"人",null,null,null,null,null,null,null,null,null,"人",null,null,null,null,null,null,null,null,null,null,null,"人",null,null,null,null,null,null,null,null,null,null,"人",null,null,null,null,null,null,null,null,null,null,"人"]
[null,"聴覚又は平衡機能障害者\n（第２号に該当する者）",null,null,null,null,null,null,null,null,null,null,null,null,null,null,null,null,null,null,"人",null,null,null,null,null,null,null,null,null,"人",null,null,null,null,null,null,null,null,null,null,null,"人",null,null,null,null,null,null,null,null,null,null,"人",null,null,null,null,null,null,null,null,null,null,"人"]
[null,"音声・言語・そしゃく機能障害者\n（第３号に該当する者）",null,null,null,null,null,null,null,null,null,null,null,null,null,null,null,null,null,null,"人",null,null,null,null,null,null,null,null,null,"人",null,null,null,null,null,null,null,null,null,null,null,"人",null,null,null,null,null,null,null,null,null,null,"人",null,null,null,null,null,null,null,null,null,null,"人"]
[null,"肢体不自由者（第４号に該当する者）",null,null,null,null,null,null,null,null,null,null,null,null,null,null,null,null,null,null,"人",null,null,null,null,null,null,null,null,null,"人",null,null,null,null,null,null,null,null,null,null,null,"人",null,null,null,null,null,null,null,null,null,null,"人",null,null,null,null,null,null,null,null,null,null,"人"]
[null,"内部障害者（第５号に該当する者）",null,null,null,null,null,null,null,null,null,null,null,null,null,null,null,null,null,null,"人",null,null,null,null,null,null,null,null,null,"人",null,null,null,null,null,null,null,null,null,null,null,"人",null,null,null,null,null,null,null,null,null,null,"人",null,null,null,null,null,null,null,null,null,null,"人"]
[]
[]
[]
[]
[null,""]

{"sheet":"様式第６号の３(1)　（裏面）","index":1,"n_rows":0,"n_cols":0,"rows_kept":0,"cut":false,"hidden":false,"merged":[]}

{"sheet":"添付","index":2,"n_rows":79,"n_cols":129,"rows_kept":79,"cut":false,"hidden":true,"merged":[[73,12,73,19],[73,22,73,29],[73,30,73,31],[73,33,73,41],[73,44,73,52],[73,53,73,54],[73,56,73,63],[71,12,71,19],[71,22,71,29],[71,30,71,31],[71,33,71,41],[71,44,71,52],[71,53,71,54],[71,56,71,63],[72,12,72,19],[72,22,72,29],[72,30,72,31],[72,33,72,41],[72,44,72,52],[72,53,72,54],[72,56,72,63],[69,53,69,54],[69,56,69,63],[70,12,70,19],[70,22,70,29],[70,30,70,31],[70,33,70,41],[70,44,70,52],[70,53,70,54],[70,56,70,63],[66,33,66,41],[66,44,66,52],[66,53,66,54],[66,56,66,63],[67,12,67,19],[67,22,67,29],[67,30,67,31],[67,33,67,41],[67,44,67,52],[67,53,67,54],[67,56,67,63],[61,44,61,52],[61,53,61,54],[61,56,61,63],[63,33,63,41],[63,44,63,52],[63,53,63,54],[63,56,63,63],[64,12,64,19],[64,22,64,29],[64,30,64,31],[64,33,64,41],[64,44,64,52],[64,53,64,54],[64,56,64,63],[63,12,63,19],[63,22,63,29],[63,30,63,31],[61,12,61,19],[61,22,61,29],[61,30,61,31],[61,33,61,41],[59,53,59,54],[59,56,59,63],[60,12,60,19],[60,22,60,29],[60,30,60,31],[60,33,60,41],[60,44,60,52],[60,53,60,54],[60,56,60,63],[59,12,59,19],[59,22,59,29],[59,30,59,31],[59,33,59,41],[59,44,59,52],[56,53,56,54],[56,56,56,63],[57,56,57,63],[58,12,58,19],[58,22,58,29],[58,30,58,31],[58,33,58,41],[58,44,58,52],[58,53,58,54],[58,56,58,63],[48,53,48,54],[48,56,48,63],[47,22,47,29],[47,30,47,31],[47,33,47,41],[51,44,51,52],[51,53,51,54],[51,56,51,63],[52,12,52,19],[52,22,52,29],[52,30,52,31],[52,33,52,41],[52,44,52,52],[52,53,52,54],[52,56,52,63],[49,53,49,54],[49,56,49,63],[48,12,48,19],[48,22,48,29],[48,30,48,31],[48,33,48,41],[48,44,48,52],[40,22,40,29],[40,30,40,31],[40,33,40,41],[40,44,40,52],[40,53,40,54],[40,56,40,63],[42,56,42,63],[43,12,43,19],[43,22,43,29],[43,30,43,31],[43,33,43,41],[43,44,43,52],[43,53,43,54],[43,56,43,63],[41,56,41,63],[30,44,30,52],[30,53,30,54],[30,56,30,63],[35,44,35,52],[35,53,35,54],[35,56,35,63],[36,12,36,19],[36,22,36,29],[36,30,36,31],[36,33,36,41],[36,44,36,52],[36,53,36,54],[36,56,36,63],[25,32,25,41],[25,53,25,54],[25,55,25,63],[28,12,28,19],[28,22,28,29],[28,30,28,31],[28,33,28,41],[28,44,28,52],[28,53,28,54],[28,56,28,63],[25,43,25,52],[13,11,16,20],[13,21,16,31],[13,32,16,42],[13,43,16,54],[13,55,16,64],[17,11,20,20],[17,21,20,31],[17,32,20,42],[17,43,20,54],[17,55,20,64],[8,52,8,54],[8,55,8,56],[8,58,8,61],[8,63,8,64],[9,11,12,20],[9,21,12,31],[9,32,12,42],[9,43,12,54],[9,55,12,64],[8,19,8,20],[8,21,8,23],[8,25,8,28],[8,30,8,31],[8,32,8,34],[8,36,8,38],[8,40,8,42],[8,43,8,45],[8,47,8,50],[46,30,46,31],[46,33,46,41],[46,44,46,52],[46,53,46,54],[46,56,46,63],[47,12,47,19],[44,12,44,19],[44,22,44,29],[44,30,44,31],[44,33,44,41],[44,44,44,52],[44,53,44,54],[44,56,44,63],[47,44,47,52],[47,53,47,54],[47,56,47,63],[53,22,53,29],[53,30,53,31],[53,33,53,41],[53,44,53,52],[55,44,55,52],[56,12,56,19],[56,22,56,29],[56,30,56,31],[56,33,56,41],[56,44,56,52],[3,15,5,47],[65,3,65,10],[66,2,66,10],[67,2,67,10],[65,12,65,19],[65,22,65,29],[65,30,65,31],[65,33,65,41],[65,44,65,52],[54,3,55,10],[54,12,54,19],[54,22,54,29],[54,30,54,31],[54,33,54,41],[54,44,54,52],[48,3,49,10],[49,12,49,19],[49,22,49,29],[49,30,49,31],[49,33,49,41],[49,44,49,52],[46,3,47,10],[46,12,46,19],[46,22,46,29],[65,53,65,54],[65,56,65,63],[66,12,66,19],[66,22,66,29],[66,30,66,31],[58,3,59,10],[64,3,64,10],[60,3,61,10],[56,3,56,10],[57,3,57,10],[57,12,57,19],[57,22,57,29],[57,30,57,31],[57,33,57,41],[57,44,57,52],[57,53,57,54],[62,3,63,10],[62,12,62,19],[62,22,62,29],[62,30,62,31],[62,33,62,41],[62,44,62,52],[62,53,62,54],[62,56,62,63],[54,53,54,54],[54,56,54,63],[55,12,55,19],[55,22,55,29],[55,30,55,31],[55,33,55,41],[50,3,51,10],[50,12,50,19],[50,22,50,29],[50,30,50,31],[50,33,50,41],[50,44,50,52],[50,53,50,54],[50,56,50,63],[51,12,51,19],[51,22,51,29],[51,30,51,31],[51,33,51,41],[53,53,53,54],[53,56,53,63],[55,53,55,54],[55,56,55,63],[52,3,53,10],[53,12,53,19],[45,3,45,10],[44,3,44,10],[45,12,45,19],[45,22,45,29],[45,30,45,31],[45,33,45,41],[45,44,45,52],[45,53,45,54],[45,56,45,63],[42,3,43,10],[42,12,42,19],[42,22,42,29],[42,30,42,31],[42,33,42,41],[42,44,42,52],[42,53,42,54],[38,3,39,10],[38,12,38,19],[38,22,38,29],[38,30,38,31],[38,33,38,41],[38,44,38,52],[38,53,38,54],[40,3,41,10],[41,12,41,19],[41,22,41,29],[41,30,41,31],[41,33,41,41],[41,44,41,52],[41,53,41,54],[39,44,39,52],[39,53,39,54],[40,12,40,19],[38,56,38,63],[39,12,39,19],[39,22,39,29],[39,30,39,31],[39,33,39,41],[36,3,37,10],[37,12,37,19],[37,22,37,29],[37,30,37,31],[37,33,37,41],[37,44,37,52],[37,53,37,54],[37,56,37,63],[39,56,39,63],[29,3,29,10],[34,3,35,10],[34,12,34,19],[34,22,34,29],[34,30,34,31],[34,33,34,41],[34,44,34,52],[34,53,34,54],[34,56,34,63],[35,12,35,19],[35,22,35,29],[35,30,35,31],[35,33,35,41],[29,12,29,19],[29,22,29,29],[29,30,29,31],[29,33,29,41],[29,44,29,52],[29,53,29,54],[29,56,29,63],[30,12,30,19],[30,22,30,29],[30,30,30,31],[30,33,30,41],[74,2,74,10],[74,11,75,18],[74,19,75,19],[74,20,77,64],[75,2,75,10],[76,2,77,10],[76,11,77,18],[76,19,77,19],[8,2,8,10],[8,11,8,12],[68,1,68,64],[69,1,69,10],[70,1,70,10],[69,12,69,19],[69,22,69,29],[69,30,69,31],[69,33,69,41],[69,44,69,52],[73,1,73,10],[71,1,71,10],[72,1,72,10],[28,3,28,10],[21,11,24,20],[21,21,24,31],[7,1,67,1],[25,2,25,10],[21,2,24,10],[17,2,20,10],[30,3,30,10],[7,2,7,10],[7,11,7,64],[8,14,8,17],[9,2,12,10],[13,2,16,10],[21,32,24,42],[21,43,24,54],[21,55,24,64],[25,11,25,19],[25,21,25,29],[25,30,25,31],[31,3,31,10],[31,12,31,19],[31,22,31,29],[31,30,31,31],[31,33,31,41],[31,44,31,52],[31,53,31,54],[31,56,31,63]]}
[]
[]
[]
[null,null,null,null,null,null,null,null,null,null,null,null,null,null,null,"障害者雇用状況報告書\n（法第45条の２の認定を受けた事業主用、事業主別）"]
[]
[]
[]
[null,"　Ｃ　雇用の状況","区     分",null,null,null,null,null,null,null,null,"Ｄ　事業所別の内訳"]
[null,null,"(13)適用事業所番号",null,null,null,null,null,null,null,null,null,null,"―",null,null,null,null,"―",null,null,null,null,null,"―",null,null,null,null,"―",null,null,null,null,null,"―",null,null,null,"―",null,null,null,null,null,null,"―",null,null,null,null,"―",null,null,null,null,null,"―",null,null,null,null,"―",null,null,null,null,null,null,null,null,null,null,null,null,null,null,null,null,null,null,null,null,null,null,null,null,null,null,null,null,null,null,null,null,null,null,null,null,null,null,null,null,null,null,null,null,null,null,null,null,null,null,null,null,null,null,{"$f":"L9&\"\"","v":""},{"$f":"U9&\"\"","v":""},{"$f":"AD9&\"\"","v":"―"},{"$f":"AM9&\"\"","v":""},{"$f":"AV9&\"\"","v":""},{"$f":"BE9&\"\"","v":""}]
[null,null,"(14)事業所の名称",null,null,null,null,null,null,null,null,null,null,null,null,null,null,null,null,null,null,null,null,null,null,null,null,null,null,null,null,null,null,null,null,null,null,null,null,null,null,null,null,null,null,null,null,null,null,null,null,null,null,null,null,null,null,null,null,null,null,null,null,null,null,null,null,null,null,null,null,null,null,null,null,null,null,null,null,null,null,null,null,null,null,null,null,null,null,null,null,null,null,null,null,null,null,null,null,null,null,null,null,null,null,null,null,null,null,null,null,null,null,null,null,null,null,{"$f":"O9&\"\"","v":""},{"$f":"X9&\"\"","v":""},{"$f":"AG9&\"\"","v":""},{"$f":"AP9&\"\"","v":""},{"$f":"AY9&\"\"","v":""},{"$f":"BH9&\"\"","v":""}]
[null,null,null,null,null,null,null,null,null,null,null,null,null,null,null,null,null,null,null,null,null,null,null,null,null,null,null,null,null,null,null,null,null,null,null,null,null,null,null,null,null,null,null,null,null,null,null,null,null,null,null,null,null,null,null,null,null,null,null,null,null,null,null,null,null,null,null,null,null,null,null,null,null,null,null,null,null,null,null,null,null,null,null,null,null,null,null,null,null,null,null,null,null,null,null,null,null,null,null,null,null,null,null,null,null,null,null,null,null,null,null,null,null,null,null,null,null,{"$f":"T9&\"\"","v":""},{"$f":"AC9&\"\"","v":""},{"$f":"AL9&\"\"","v":""},{"$f":"AU9&\"\"","v":"―"},{"$f":"BD9&\"\"","v":""},{"$f":"BM9&\"\"","v":""}]
[null,null,null,null,null,null,null,null,null,null,null,null,null,null,null,null,null,null,null,null,null,null,null,null,null,null,null,null,null,null,null,null,null,null,null,null,null,null,null,null,null,null,null,null,null,null,null,null,null,null,null,null,null,null,null,null,null,null,null,null,null,null,null,null,null,null,null,null,null,null,null,null,null,null,null,null,null,null,null,null,null,null,null,null,null,null,null,null,null,null,null,null,null,null,null,null,null,null,null,null,null,null,null,null,null,null,null,null,null,null,null,null,null,null,null,null,null,{"$f":"L10&\"\"","v":""},{"$f":"U10&\"\"","v":""},{"$f":"AD10&\"\"","v":""},{"$f":"AM10&\"\"","v":""},{"$f":"AV10&\"\"","v":""},{"$f":"BE10&\"\"","v":""}]
[]
[null,null,"(15)事業所の区分\n　１　指定就労継続支援Ａ型事業所\n　２　上記１以外"]
[]
[]
[]
[null,null,"(16)事業所の所在地",null,null,null,null,null,null,null,null,null,null,null,null,null,null,null,null,null,null,null,null,null,null,null,null,null,null,null,null,null,null,null,null,null,null,null,null,null,null,null,null,null,null,null,null,null,null,null,null,null,null,null,null,null,null,null,null,null,null,null,null,null,null,null,null,null,null,null,null,null,null,null,null,null,null,null,null,null,null,null,null,null,null,null,null,null,null,null,null,null,null,null,null,null,null,null,null,null,null,null,null,null,null,null,null,null,null,null,null,null,null,null,null,null,null,{"$f":"L18&\"\"","v":""},{"$f":"U18&\"\"","v":""},{"$f":"AD18&\"\"","v":""},{"$f":"AM18&\"\"","v":""},{"$f":"AV18&\"\"","v":""},{"$f":"BE18&\"\"","v":""}]
[]
[]
[]
[null,null,"(17)事業の内容",null,null,null,null,null,null,null,null,null,null,null,null,null,null,null,null,null,null,null,null,null,null,null,null,null,null,null,null,null,null,null,null,null,null,null,null,null,null,null,null,null,null,null,null,null,null,null,null,null,null,null,null,null,null,null,null,null,null,null,null,null,null,null,null,null,null,null,null,null,null,null,null,null,null,null,null,null,null,null,null,null,null,null,null,null,null,null,null,null,null,null,null,null,null,null,null,null,null,null,null,null,null,null,null,null,null,null,null,null,null,null,null,null,null,{"$f":"L22&\"\"","v":""},{"$f":"U22&\"\"","v":""},{"$f":"AD22&\"\"","v":""},{"$f":"AM22&\"\"","v":""},{"$f":"AV22&\"\"","v":""},{"$f":"BE22&\"\"","v":""}]
[]
[]
[]
[null,null,"(18)除外率",null,null,null,null,null,null,null,null,null,null,null,null,null,null,null,null,null,"％",null,null,null,null,null,null,null,null,null,"％",null,null,null,null,null,null,null,null,null,null,null,"％",null,null,null,null,null,null,null,null,null,null,"％",null,null,null,null,null,null,null,null,null,null,"％",null,{"$f":"M29+W29+AH29+AS29+BE29","v":0},{"$f":"M30+W30+AH30+AS30+BE30","v":0},{"$f":"M32+W32+AH32+AS32+BE32","v":0},{"$f":"M35+W35+AH35+AS35+BE35","v":0},{"$f":"M36+W36+AH36+AS36+BE36","v":0},{"$f":"M37+W37+AH37+AS37+BE37","v":0},{"$f":"M38+W38+AH38+AS38+BE38","v":0},{"$f":"M39+W39+AH39+AS39+BE39","v":0},{"$f":"M40+W40+AH40+AS40+BE40","v":0},{"$f":"M41+W41+AH41+AS41+BE41","v":0},{"$f":"M42+W42+AH42+AS42+BE42","v":0},{"$f":"M43+W43+AH43+AS43+BE43","v":0},{"$f":"M44+W44+AH44+AS44+BE44","v":0},{"$f":"M47+W47+AH47+AS47+BE47","v":0},{"$f":"M48+W48+AH48+AS48+BE48","v":0},{"$f":"M49+W49+AH49+AS49+BE49","v":0},{"$f":"M50+W50+AH50+AS50+BE50","v":0},{"$f":"M51+W51+AH51+AS51+BE51","v":0},{"$f":"M52+W52+AH52+AS52+BE52","v":0},{"$f":"M53+W53+AH53+AS53+BE53","v":0},{"$f":"M54+W54+AH54+AS54+BE54","v":0},{"$f":"M55+W55+AH55+AS55+BE55","v":0},{"$f":"M56+W56+AH56+AS56+BE56","v":0},{"$f":"M59+W59+AH59+AS59+BE59","v":0},{"$f":"M60+W60+AH60+AS60+BE60","v":0},{"$f":"M61+W61+AH61+AS61+BE61","v":0},{"$f":"M62+W62+AH62+AS62+BE62","v":0},{"$f":"M63+W63+AH63+AS63+BE63","v":0},{"$f":"M64+W64+AH64+AS64+BE64","v":0},{"$f":"M70+W70+AH70+AS70+BE70","v":0},{"$f":"M71+W71+AH71+AS71+BE71","v":0},{"$f":"M72+W72+AH72+AS72+BE72","v":0},{"$f":"M73+W73+AH73+AS73+BE73","v":0},{"$f":"M74+W74+AH74+AS74+BE74","v":0},null,null,null,null,null,null,null,null,null,null,null,null,null,null,null,null,null,{"$f":"L26&\"\"","v":""},{"$f":"U26&\"\"","v":"％"},{"$f":"AD26&\"\"","v":""},{"$f":"AM26&\"\"","v":""},{"$f":"AV26&\"\"","v":""},{"$f":"BE26&\"\"","v":""}]
[null,null,"(19)常用雇用労働者の数"]
[]
[null,null,null,"(ｲ)常用雇用労働者の数",null,null,null,null,null,null,null,null,null,null,null,null,null,null,null,null,"人",null,null,null,null,null,null,null,null,null,"人",null,null,null,null,null,null,null,null,null,null,null,"人",null,null,null,null,null,null,null,null,null,null,"人",null,null,null,null,null,null,null,null,null,null,"人",null,null,null,null,null,null,null,null,null,null,null,null,null,null,null,null,null,null,null,null,null,null,null,null,null,null,null,null,null,null,null,null,null,null,null,null,null,null,null,null,null,null,null,null,null,null,null,null,null,null,null,null,{"$f":"M29&\"\"","v":""},{"$f":"V29&\"\"","v":""},{"$f":"AE29&\"\"","v":"人"},{"$f":"AN29&\"\"","v":""},{"$f":"AW29&\"\"","v":""},{"$f":"BF29&\"\"","v":""}]
[null,null,null,"(ﾛ)短時間労働者の数",null,null,null,null,null,null,null,null,null,null,null,null,null,null,null,null,"人",null,null,null,null,null,null,null,null,null,"人",null,null,null,null,null,null,null,null,null,null,null,"人",null,null,null,null,null,null,null,null,null,null,"人",null,null,null,null,null,null,null,null,null,null,"人",null,null,null,null,null,null,null,null,null,null,null,null,null,null,null,null,null,null,null,null,null,null,null,null,null,null,null,null,null,null,null,null,null,null,null,null,null,null,null,null,null,null,null,null,null,null,null,null,null,null,null,null,{"$f":"M30&\"\"","v":""},{"$f":"V30&\"\"","v":""},{"$f":"AE30&\"\"","v":"人"},{"$f":"AN30&\"\"","v":""},{"$f":"AW30&\"\"","v":""},{"$f":"BF30&\"\"","v":""}]
[null,null,null,"(ﾊ)常用雇用労働者の数［ｲ+(ﾛ×0.5)］",null,null,null,null,null,null,null,null,{"$f":"M29+M30*0.5","v":0},null,null,null,null,null,null,null,"人",null,{"$f":"W29+W30*0.5","v":0},null,null,null,null,null,null,null,"人",null,null,{"$f":"AH29+AH30*0.5","v":0},null,null,null,null,null,null,null,null,"人",null,{"$f":"AS29+AS30*0.5","v":0},null,null,null,null,null,null,null,null,"人",null,null,{"$f":"BE29+BE30*0.5","v":0},null,null,null,null,null,null,null,"人",null,null,null,null,null,null,null,null,null,null,null,null,null,null,null,null,null,null,null,null,null,null,null,null,null,null,null,null,null,null,null,null,null,null,null,null,null,null,null,null,null,null,null,null,null,null,null,null,null,null,null,null,null,null,null,null,null,null,{"$f":"M31&\"\"","v":"0"},{"$f":"V31&\"\"","v":""},{"$f":"AE31&\"\"","v":"人"},{"$f":"AN31&\"\"","v":""},{"$f":"AW31&\"\"","v":""},{"$f":"BF31&\"\"","v":""}]
[null,null,null,"(ﾆ)法定雇用障害者の算定の基礎と\n   なる労働者の数",null,null,null,null,null,null,null,null,null,null,null,null,null,null,null,null,"人",null,null,null,null,null,null,null,null,null,"人",null,null,null,null,null,null,null,null,null,null,null,"人",null,null,null,null,null,null,null,null,null,null,"人",null,null,null,null,null,null,null,null,null,null,"人",null,null,null,null,null,null,null,null,null,null,null,null,null,null,null,null,null,null,null,null,null,null,null,null,null,null,null,null,null,null,null,null,null,null,null,null,null,null,null,null,null,null,null,null,null,null,null,null,null,null,null,null,{"$f":"M32&\"\"","v":""},{"$f":"V32&\"\"","v":""},{"$f":"AE32&\"\"","v":"人"},{"$f":"AN32&\"\"","v":""},{"$f":"AW32&\"\"","v":""},{"$f":"BF32&\"\"","v":""}]
[null,null,"(20)常用雇用身体障害者、知的障害者及び精神障害者の数"]
[]
[null,null,null,"(ﾎ)重度身体障害者の数",null,null,null,null,null,null,null,null,null,null,null,null,null,null,null,null,"人",null,null,null,null,null,null,null,null,null,"人",null,null,null,null,null,null,null,null,null,null,null,"人",null,null,null,null,null,null,null,null,null,null,"人",null,null,null,null,null,null,null,null,null,null,"人",null,null,null,null,null,null,null,null,null,null,null,null,null,null,null,null,null,null,null,null,null,null,null,null,null,null,null,null,null,null,null,null,null,null,null,null,null,null,null,null,null,null,null,null,null,null,null,null,null,null,null,null,{"$f":"M35&\"\"","v":""},{"$f":"V35&\"\"","v":""},{"$f":"AE35&\"\"","v":"人"},{"$f":"AN35&\"\"","v":""},{"$f":"AW35&\"\"","v":""},{"$f":"BF35&\"\"","v":""}]
[null,null,null,null,null,null,null,null,null,null,null,"（",null,null,null,null,null,null,null,null,"）","（",null,null,null,null,null,null,null,null,"）",null,"（",null,null,null,null,null,null,null,null,null,"）","（",null,null,null,null,null,null,null,null,null,"）",null,"（",null,null,null,null,null,null,null,null,"）",null,null,null,null,null,null,null,null,null,null,null,null,null,null,null,null,null,null,null,null,null,null,null,null,null,null,null,null,null,null,null,null,null,null,null,null,null,null,null,null,null,null,null,null,null,null,null,null,null,null,null,null,"",{"$f":"V36&\"\"","v":"（"},{"$f":"AE36&\"\"","v":"）"},{"$f":"AN36&\"\"","v":""},{"$f":"AW36&\"\"","v":""},{"$f":"BF36&\"\"","v":""}]
[null,null,null,"(ﾍ)重度身体障害者以外の\n   身体障害者の数",null,null,null,null,null,null,null,null,null,null,null,null,null,null,null,null,"人",null,null,null,null,null,null,null,null,null,"人",null,null,null,null,null,null,null,null,null,null,null,"人",null,null,null,null,null,null,null,null,null,null,"人",null,null,null,null,null,null,null,null,null,null,"人",null,null,null,null,null,null,null,null,null,null,null,null,null,null,null,null,null,null,null,null,null,null,null,null,null,null,null,null,null,null,null,null,null,null,null,null,null,null,null,null,null,null,null,null,null,null,null,null,null,null,null,null,"","","人","","",""]
[null,null,null,null,null,null,null,null,null,null,null,"（",null,null,null,null,null,null,null,null,"）","（",null,null,null,null,null,null,null,null,"）",null,"（",null,null,null,null,null,null,null,null,null,"）","（",null,null,null,null,null,null,null,null,null,"）",null,"（",null,null,null,null,null,null,null,null,"）",null,null,null,null,null,null,null,null,null,null,null,null,null,null,null,null,null,null,null,null,null,null,null,null,null,null,null,null,null,null,null,null,null,null,null,null,null,null,null,null,null,null,null,null,null,null,null,null,null,null,null,null,"","（","）","","",""]
[null,null,null,"(ﾄ)重度身体障害者である\n　 短時間労働者の数",null,null,null,null,null,null,null,null,null,null,null,null,null,null,null,null,"人",null,null,null,null,null,null,null,null,null,"人",null,null,null,null,null,null,null,null,null,null,null,"人",null,null,null,null,null,null,null,null,null,null,"人",null,null,null,null,null,null,null,null,null,null,"人",null,null,null,null,null,null,null,null,null,null,null,null,null,null,null,null,null,null,null,null,null,null,null,null,null,null,null,null,null,null,null,null,null,null,null,null,null,null,null,null,null,null,null,null,null,null,null,null,null,null,null,null,"",{"$f":"V39&\"\"","v":""},{"$f":"AE39&\"\"","v":"人"},{"$f":"AN39&\"\"","v":""},{"$f":"AW39&\"\"","v":""},{"$f":"BF39&\"\"","v":""}]
[null,null,null,null,null,null,null,null,null,null,null,"（",null,null,null,null,null,null,null,null,"）","（",null,null,null,null,null,null,null,null,"）",null,"（",null,null,null,null,null,null,null,null,null,"）","（",null,null,null,null,null,null,null,null,null,"）",null,"（",null,null,null,null,null,null,null,null,"）",null,null,null,null,null,null,null,null,null,null,null,null,null,null,null,null,null,null,null,null,null,null,null,null,null,null,null,null,null,null,null,null,null,null,null,null,null,null,null,null,null,null,null,null,null,null,null,null,null,null,null,null,"",{"$f":"V40&\"\"","v":"（"},{"$f":"AE40&\"\"","v":"）"},{"$f":"AN40&\"\"","v":""},{"$f":"AW40&\"\"","v":""},{"$f":"BF40&\"\"","v":""}]
[null,null,null,"(ﾁ)重度身体障害者以外の身体障害\n   者である短時間労働者の数",null,null,null,null,null,null,null,null,null,null,null,null,null,null,null,null,"人",null,null,null,null,null,null,null,null,null,"人",null,null,null,null,null,null,null,null,null,null,null,"人",null,null,null,null,null,null,null,null,null,null,"人",null,null,null,null,null,null,null,null,null,null,"人",null,null,null,null,null,null,null,null,null,null,null,null,null,null,null,null,null,null,null,null,null,null,null,null,null,null,null,null,null,null,null,null,null,null,null,null,null,null,null,null,null,null,null,null,null,null,null,null,null,null,null,null,{"$f":"M41&\"\"","v":""},{"$f":"V41&\"\"","v":""},{"$f":"AE41&\"\"","v":"人"},{"$f":"AN41&\"\"","v":""},{"$f":"AW41&\"\"","v":""},{"$f":"BF41&\"\"","v":""}]
[null,null,null,null,null,null,null,null,null,null,null,"（",null,null,null,null,null,null,null,null,"）","（",null,null,null,null,null,null,null,null,"）",null,"（",null,null,null,null,null,null,null,null,null,"）","（",null,null,null,null,null,null,null,null,null,"）",null,"（",null,null,null,null,null,null,null,null,"）",null,null,null,null,null,null,null,null,null,null,null,null,null,null,null,null,null,null,null,null,null,null,null,null,null,null,null,null,null,null,null,null,null,null,null,null,null,null,null,null,null,null,null,null,null,null,null,null,null,null,null,null,"",{"$f":"V42&\"\"","v":"（"},"）","","",{"$f":"BF42&\"\"","v":""}]
[null,null,null,"(ﾘ)重度身体障害者である\n   特定短時間労働者の数",null,null,null,null,null,null,null,null,null,null,null,null,null,null,null,null,"人",null,null,null,null,null,null,null,null,null,"人",null,null,null,null,null,null,null,null,null,null,null,"人",null,null,null,null,null,null,null,null,null,null,"人",null,null,null,null,null,null,null,null,null,null,"人",null,null,null,null,null,null,null,null,null,null,null,null,null,null,null,null,null,null,null,null,null,null,null,null,null,null,null,null,null,null,null,null,null,null,null,null,null,null,null,null,null,null,null,null,null,null,null,null,null,null,null,null,"","","人","","",""]
[null,null,null,null,null,null,null,null,null,null,null,"（",null,null,null,null,null,null,null,null,"）","（",null,null,null,null,null,null,null,null,"）",null,"（",null,null,null,null,null,null,null,null,null,"）","（",null,null,null,null,null,null,null,null,null,"）",null,"（",null,null,null,null,null,null,null,null,"）",null,null,null,null,null,null,null,null,null,null,null,null,null,null,null,null,null,null,null,null,null,null,null,null,null,null,null,null,null,null,null,null,null,null,null,null,null,null,null,null,null,null,null,null,null,null,null,null,null,null,null,null,"",{"$f":"V44&\"\"","v":"（"},"）","","",{"$f":"BF44&\"\"","v":""}]
[null,null,null,"(ﾇ)身体障害者の数",null,null,null,null,null,null,null,null,{"$f":"(M35*2)+M37+M39+((M41+M43)*0.5)","v":0},null,null,null,null,null,null,null,"人",null,{"$f":"(W35*2)+W37+W39+((W41+W43)*0.5)","v":0},null,null,null,null,null,null,null,"人",null,null,{"$f":"(AH35*2)+AH37+AH39+((AH41+AH43)*0.5)","v":0},null,null,null,null,null,null,null,null,"人",null,{"$f":"(AS35*2)+AS37+AS39+((AS41+AS43)*0.5)","v":0},null,null,null,null,null,null,null,null,"人",null,null,{"$f":"(BE35*2)+BE37+BE39+((BE41+BE43)*0.5)","v":0},null,null,null,null,null,null,null,"人",null,null,null,null,null,null,null,null,null,null,null,null,null,null,null,null,null,null,null,null,null,null,null,null,null,null,null,null,null,null,null,null,null,null,null,null,null,null,null,null,null,null,null,null,null,null,null,null,null,null,null,null,"0","","人","","",""]
[null,null,null,"  ［(ﾎ×2)+ﾍ+ﾄ+((ﾁ+ﾘ)×0.5)］",null,null,null,null,null,null,null,"（",{"$f":"(M36*2)+M38+M40+((M42+M44)*0.5)","v":0},null,null,null,null,null,null,null,"）","（",{"$f":"(W36*2)+W38+W40+((W42+W44)*0.5)","v":0},null,null,null,null,null,null,null,"）",null,"（",{"$f":"(AH36*2)+AH38+AH40+((AH42+AH44)*0.5)","v":0},null,null,null,null,null,null,null,null,"）","（",{"$f":"(AS36*2)+AS38+AS40+((AS42+AS44)*0.5)","v":0},null,null,null,null,null,null,null,null,"）",null,"（",{"$f":"(BE36*2)+BE38+BE40+((BE42+BE44)*0.5)","v":0},null,null,null,null,null,null,null,"）",null,null,null,null,null,null,null,null,null,null,null,null,null,null,null,null,null,null,null,null,null,null,null,null,null,null,null,null,null,null,null,null,null,null,null,null,null,null,null,null,null,null,null,null,null,null,null,null,null,null,null,null,"0","（","）","","",""]
[null,null,null,"(ﾙ)重度知的障害者の数",null,null,null,null,null,null,null,null,null,null,null,null,null,null,null,null,"人",null,null,null,null,null,null,null,null,null,"人",null,null,null,null,null,null,null,null,null,null,null,"人",null,null,null,null,null,null,null,null,null,null,"人",null,null,null,null,null,null,null,null,null,null,"人",null,null,null,null,null,null,null,null,null,null,null,null,null,null,null,null,null,null,null,null,null,null,null,null,null,null,null,null,null,null,null,null,null,null,null,null,null,null,null,null,null,null,null,null,null,null,null,null,null,null,null,null,"","","人","","",""]
[null,null,null,null,null,null,null,null,null,null,null,"（",null,null,null,null,null,null,null,null,"）","（",null,null,null,null,null,null,null,null,"）",null,"（",null,null,null,null,null,null,null,null,null,"）","（",null,null,null,null,null,null,null,null,null,"）",null,"（",null,null,null,null,null,null,null,null,"）",null,null,null,null,null,null,null,null,null,null,null,null,null,null,null,null,null,null,null,null,null,null,null,null,null,null,null,null,null,null,null,null,null,null,null,null,null,null,null,null,null,null,null,null,null,null,null,null,null,null,null,null,"","（","）","","",""]
[null,null,null,"(ｦ)重度知的障害者以外の\n   知的障害者の数",null,null,null,null,null,null,null,null,null,null,null,null,null,null,null,null,"人",null,null,null,null,null,null,null,null,null,"人",null,null,null,null,null,null,null,null,null,null,null,"人",null,null,null,null,null,null,null,null,null,null,"人",null,null,null,null,null,null,null,null,null,null,"人",null,null,null,null,null,null,null,null,null,null,null,null,null,null,null,null,null,null,null,null,null,null,null,null,null,null,null,null,null,null,null,null,null,null,null,null,null,null,null,null,null,null,null,null,null,null,null,null,null,null,null,null,"","","人","","",""]
[null,null,null,null,null,null,null,null,null,null,null,"（",null,null,null,null,null,null,null,null,"）","（",null,null,null,null,null,null,null,null,"）",null,"（",null,null,null,null,null,null,null,null,null,"）","（",null,null,null,null,null,null,null,null,null,"）",null,"（",null,null,null,null,null,null,null,null,"）",null,null,null,null,null,null,null,null,null,null,null,null,null,null,null,null,null,null,null,null,null,null,null,null,null,null,null,null,null,null,null,null,null,null,null,null,null,null,null,null,null,null,null,null,null,null,null,null,null,null,null,null,"","（","）","","",""]
[null,null,null,"(ﾜ)重度知的障害者である\n   短時間労働者の数",null,null,null,null,null,null,null,null,null,null,null,null,null,null,null,null,"人",null,null,null,null,null,null,null,null,null,"人",null,null,null,null,null,null,null,null,null,null,null,"人",null,null,null,null,null,null,null,null,null,null,"人",null,null,null,null,null,null,null,null,null,null,"人",null,null,null,null,null,null,null,null,null,null,null,null,null,null,null,null,null,null,null,null,null,null,null,null,null,null,null,null,null,null,null,null,null,null,null,null,null,null,null,null,null,null,null,null,null,null,null,null,null,null,null,null,"","","人","","",""]
[null,null,null,null,null,null,null,null,null,null,null,"（",null,null,null,null,null,null,null,null,"）","（",null,null,null,null,null,null,null,null,"）",null,"（",null,null,null,null,null,null,null,null,null,"）","（",null,null,null,null,null,null,null,null,null,"）",null,"（",null,null,null,null,null,null,null,null,"）",null,null,null,null,null,null,null,null,null,null,null,null,null,null,null,null,null,null,null,null,null,null,null,null,null,null,null,null,null,null,null,null,null,null,null,null,null,null,null,null,null,null,null,null,null,null,null,null,null,null,null,null,"","（","）","","",""]
[null,null,null,"(ｶ)重度知的障害者以外の知的障害\n   者である短時間労働者の数",null,null,null,null,null,null,null,null,null,null,null,null,null,null,null,null,"人",null,null,null,null,null,null,null,null,null,"人",null,null,null,null,null,null,null,null,null,null,null,"人",null,null,null,null,null,null,null,null,null,null,"人",null,null,null,null,null,null,null,null,null,null,"人",null,null,null,null,null,null,null,null,null,null,null,null,null,null,null,null,null,null,null,null,null,null,null,null,null,null,null,null,null,null,null,null,null,null,null,null,null,null,null,null,null,null,null,null,null,null,null,null,null,null,null,null,{"$f":"M53&\"\"","v":""},"","人","","",""]
[null,null,null,null,null,null,null,null,null,null,null,"（",null,null,null,null,null,null,null,null,"）","（",null,null,null,null,null,null,null,null,"）",null,"（",null,null,null,null,null,null,null,null,null,"）","（",null,null,null,null,null,null,null,null,null,"）",null,"（",null,null,null,null,null,null,null,null,"）",null,null,null,null,null,null,null,null,null,null,null,null,null,null,null,null,null,null,null,null,null,null,null,null,null,null,null,null,null,null,null,null,null,null,null,null,null,null,null,null,null,null,null,null,null,null,null,null,null,null,null,null,"","（","）","","",""]
[null,null,null,"(ﾖ)重度知的障害者である\n   特定短時間労働者の数",null,null,null,null,null,null,null,null,null,null,null,null,null,null,null,null,"人",null,null,null,null,null,null,null,null,null,"人",null,null,null,null,null,null,null,null,null,null,null,"人",null,null,null,null,null,null,null,null,null,null,"人",null,null,null,null,null,null,null,null,null,null,"人",null,null,null,null,null,null,null,null,null,null,null,null,null,null,null,null,null,null,null,null,null,null,null,null,null,null,null,null,null,null,null,null,null,null,null,null,null,null,null,null,null,null,null,null,null,null,null,null,null,null,null,null,"",{"$f":"V55&\"\"","v":""},{"$f":"AE55&\"\"","v":"人"},{"$f":"AN55&\"\"","v":""},{"$f":"AW55&\"\"","v":""},{"$f":"BF55&\"\"","v":""}]
[null,null,null,null,null,null,null,null,null,null,null,"（",null,null,null,null,null,null,null,null,"）","（",null,null,null,null,null,null,null,null,"）",null,"（",null,null,null,null,null,null,null,null,null,"）","（",null,null,null,null,null,null,null,null,null,"）",null,"（",null,null,null,null,null,null,null,null,"）",null,null,null,null,null,null,null,null,null,null,null,null,null,null,null,null,null,null,null,null,null,null,null,null,null,null,null,null,null,null,null,null,null,null,null,null,null,null,null,null,null,null,null,null,null,null,null,null,null,null,null,null,"","（","）","","",""]
[null,null,null,"(ﾀ)知的障害者の数",null,null,null,null,null,null,null,null,{"$f":"(M47*2)+M49+M51+((M53+M55)*0.5)","v":0},null,null,null,null,null,null,null,"人",null,{"$f":"(W47*2)+W49+W51+((W53+W55)*0.5)","v":0},null,null,null,null,null,null,null,"人",null,null,{"$f":"(AH47*2)+AH49+AH51+((AH53+AH55)*0.5)","v":0},null,null,null,null,null,null,null,null,"人",null,{"$f":"(AS47*2)+AS49+AS51+((AS53+AS55)*0.5)","v":0},null,null,null,null,null,null,null,null,"人",null,null,{"$f":"(BE47*2)+BE49+BE51+((BE53+BE55)*0.5)","v":0},null,null,null,null,null,null,null,"人",null,null,null,null,null,null,null,null,null,null,null,null,null,null,null,null,null,null,null,null,null,null,null,null,null,null,null,null,null,null,null,null,null,null,null,null,null,null,null,null,null,null,null,null,null,null,null,null,null,null,null,null,{"$f":"M57&\"\"","v":"0"},"","人","","",""]
[null,null,null,"  ［(ﾙ×2)+ｦ+ﾜ+((ｶ+ﾖ)×0.5)］",null,null,null,null,null,null,null,"（",{"$f":"(M48*2)+M50+M52+((M54+M56)*0.5)","v":0},null,null,null,null,null,null,null,"）","（",{"$f":"(W48*2)+W50+W52+((W54+W56)*0.5)","v":0},null,null,null,null,null,null,null,"）",null,"（",{"$f":"(AH48*2)+AH50+AH52+((AH54+AH56)*0.5)","v":0},null,null,null,null,null,null,null,null,"）","（",{"$f":"(AS48*2)+AS50+AS52+((AS54+AS56)*0.5)","v":0},null,null,null,null,null,null,null,null,"）",null,"（",{"$f":"(BE48*2)+BE50+BE52+((BE54+BE56)*0.5)","v":0},null,null,null,null,null,null,null,"）",null,null,null,null,null,null,null,null,null,null,null,null,null,null,null,null,null,null,null,null,null,null,null,null,null,null,null,null,null,null,null,null,null,null,null,null,null,null,null,null,null,null,null,null,null,null,null,null,null,null,null,null,"0","（","）","","",""]
[null,null,null,"(ﾚ)精神障害者の数",null,null,null,null,null,null,null,null,null,null,null,null,null,null,null,null,"人",null,null,null,null,null,null,null,null,null,"人",null,null,null,null,null,null,null,null,null,null,null,"人",null,null,null,null,null,null,null,null,null,null,"人",null,null,null,null,null,null,null,null,null,null,"人",null,null,null,null,null,null,null,null,null,null,null,null,null,null,null,null,null,null,null,null,null,null,null,null,null,null,null,null,null,null,null,null,null,null,null,null,null,null,null,null,null,null,null,null,null,null,null,null,null,null,null,null,{"$f":"M59&\"\"","v":""},{"$f":"V59&\"\"","v":""},{"$f":"AE59&\"\"","v":"人"},{"$f":"AN59&\"\"","v":""},{"$f":"AW59&\"\"","v":""},{"$f":"BF59&\"\"","v":""}]
[null,null,null,null,null,null,null,null,null,null,null,"（",null,null,null,null,null,null,null,null,"）","（",null,null,null,null,null,null,null,null,"）",null,"（",null,null,null,null,null,null,null,null,null,"）","（",null,null,null,null,null,null,null,null,null,"）",null,"（",null,null,null,null,null,null,null,null,"）",null,null,null,null,null,null,null,null,null,null,null,null,null,null,null,null,null,null,null,null,null,null,null,null,null,null,null,null,null,null,null,null,null,null,null,null,null,null,null,null,null,null,null,null,null,null,null,null,null,null,null,null,"",{"$f":"V60&\"\"","v":"（"},{"$f":"AE60&\"\"","v":"）"},{"$f":"AN60&\"\"","v":""},{"$f":"AW60&\"\"","v":""},{"$f":"BF60&\"\"","v":""}]
[null,null,null,"(ｿ)精神障害者である\n   短時間労働者の数",null,null,null,null,null,null,null,null,null,null,null,null,null,null,null,null,"人",null,null,null,null,null,null,null,null,null,"人",null,null,null,null,null,null,null,null,null,null,null,"人",null,null,null,null,null,null,null,null,null,null,"人",null,null,null,null,null,null,null,null,null,null,"人",null,null,null,null,null,null,null,null,null,null,null,null,null,null,null,null,null,null,null,null,null,null,null,null,null,null,null,null,null,null,null,null,null,null,null,null,null,null,null,null,null,null,null,null,null,null,null,null,null,null,null,null,"",{"$f":"V61&\"\"","v":""},{"$f":"AE61&\"\"","v":"人"},{"$f":"AN61&\"\"","v":""},{"$f":"AW61&\"\"","v":""},{"$f":"BF61&\"\"","v":""}]
[null,null,null,null,null,null,null,null,null,null,null,"（",null,null,null,null,null,null,null,null,"）","（",null,null,null,null,null,null,null,null,"）",null,"（",null,null,null,null,null,null,null,null,null,"）","（",null,null,null,null,null,null,null,null,null,"）",null,"（",null,null,null,null,null,null,null,null,"）",null,null,null,null,null,null,null,null,null,null,null,null,null,null,null,null,null,null,null,null,null,null,null,null,null,null,null,null,null,null,null,null,null,null,null,null,null,null,null,null,null,null,null,null,null,null,null,null,null,null,null,null,"",{"$f":"V62&\"\"","v":"（"},{"$f":"AE62&\"\"","v":"）"},{"$f":"AN62&\"\"","v":""},{"$f":"AW62&\"\"","v":""},{"$f":"BF62&\"\"","v":""}]
[null,null,null,"(ﾂ)精神障害者である\n   特定短時間労働者の数",null,null,null,null,null,null,null,null,null,null,null,null,null,null,null,null,"人",null,null,null,null,null,null,null,null,null,"人",null,null,null,null,null,null,null,null,null,null,null,"人",null,null,null,null,null,null,null,null,null,null,"人",null,null,null,null,null,null,null,null,null,null,"人",null,null,null,null,null,null,null,null,null,null,null,null,null,null,null,null,null,null,null,null,null,null,null,null,null,null,null,null,null,null,null,null,null,null,null,null,null,null,null,null,null,null,null,null,null,null,null,null,null,null,null,null,"",{"$f":"V63&\"\"","v":""},{"$f":"AE63&\"\"","v":"人"},{"$f":"AN63&\"\"","v":""},{"$f":"AW63&\"\"","v":""},{"$f":"BF63&\"\"","v":""}]
[null,null,null,null,null,null,null,null,null,null,null,"（",null,null,null,null,null,null,null,null,"）","（",null,null,null,null,null,null,null,null,"）",null,"（",null,null,null,null,null,null,null,null,null,"）","（",null,null,null,null,null,null,null,null,null,"）",null,"（",null,null,null,null,null,null,null,null,"）",null,null,null,null,null,null,null,null,null,null,null,null,null,null,null,null,null,null,null,null,null,null,null,null,null,null,null,null,null,null,null,null,null,null,null,null,null,null,null,null,null,null,null,null,null,null,null,null,null,null,null,null,"","（","）","","",""]
[null,null,null,"(ﾈ)精神障害者の数",null,null,null,null,null,null,null,null,{"$f":"M59+M61+M63*0.5","v":0},null,null,null,null,null,null,null,"人",null,{"$f":"W59+W61+W63*0.5","v":0},null,null,null,null,null,null,null,"人",null,null,{"$f":"AH59+AH61+AH63*0.5","v":0},null,null,null,null,null,null,null,null,"人",null,{"$f":"AS59+AS61+AS63*0.5","v":0},null,null,null,null,null,null,null,null,"人",null,null,{"$f":"BE59+BE61+BE63*0.5","v":0},null,null,null,null,null,null,null,"人",null,null,null,null,null,null,null,null,null,null,null,null,null,null,null,null,null,null,null,null,null,null,null,null,null,null,null,null,null,null,null,null,null,null,null,null,null,null,null,null,null,null,null,null,null,null,null,null,null,null,null,null,"0","","人","","",""]
[null,null,null,"　［ﾚ+ｿ+(ﾂ×0.5)］",null,null,null,null,null,null,null,"（",{"$f":"M60+M62+M64*0.5","v":0},null,null,null,null,null,null,null,"）","（",{"$f":"W60+W62+W64*0.5","v":0},null,null,null,null,null,null,null,"）",null,"（",{"$f":"AH60+AH62+AH64*0.5","v":0},null,null,null,null,null,null,null,null,"）","（",{"$f":"AS60+AS62+AS64*0.5","v":0},null,null,null,null,null,null,null,null,"）",null,"（",{"$f":"BE60+BE62+BE64*0.5","v":0},null,null,null,null,null,null,null,"）",null,null,null,null,null,null,null,null,null,null,null,null,null,null,null,null,null,null,null,null,null,null,null,null,null,null,null,null,null,null,null,null,null,null,null,null,null,null,null,null,null,null,null,null,null,null,null,null,null,null,null,null,"0","（","）","","",""]
[null,null,"(21)　　　     計",null,null,null,null,null,null,null,null,null,{"$f":"M45+M57+M65","v":0},null,null,null,null,null,null,null,"人",null,{"$f":"W45+W57+W65","v":0},null,null,null,null,null,null,null,"人",null,null,{"$f":"AH45+AH57+AH65","v":0},null,null,null,null,null,null,null,null,"人",null,{"$f":"AS45+AS57+AS65","v":0},null,null,null,null,null,null,null,null,"人",null,null,{"$f":"BE45+BE57+BE65","v":0},null,null,null,null,null,null,null,"人",null,null,null,null,null,null,null,null,null,null,null,null,null,null,null,null,null,null,null,null,null,null,null,null,null,null,null,null,null,null,null,null,null,null,null,null,null,null,null,null,null,null,null,null,null,null,null,null,null,null,null,null,"0",{"$f":"V67&\"\"","v":""},{"$f":"AE67&\"\"","v":"人"},{"$f":"AN67&\"\"","v":""},{"$f":"AW67&\"\"","v":""},{"$f":"BF67&\"\"","v":""}]
[null,null,"  　［(20)のﾇ+(20)のﾀ+(20)のﾈ］",null,null,null,null,null,null,null,null,"（",{"$f":"M46+M58+M66","v":0},null,null,null,null,null,null,null,"）","（",{"$f":"W46+W58+W66","v":0},null,null,null,null,null,null,null,"）",null,"（",{"$f":"AH46+AH58+AH66","v":0},null,null,null,null,null,null,null,null,"）","（",{"$f":"AS46+AS58+AS66","v":0},null,null,null,null,null,null,null,null,"）",null,"（",{"$f":"BE46+BE58+BE66","v":0},null,null,null,null,null,null,null,"）",null,null,null,null,null,null,null,null,null,null,null,null,null,null,null,null,null,null,null,null,null,null,null,null,null,null,null,null,null,null,null,null,null,null,null,null,null,null,null,null,null,null,null,null,null,null,null,null,null,null,null,null,"0",{"$f":"V68&\"\"","v":"（"},{"$f":"AE68&\"\"","v":"）"},{"$f":"AN68&\"\"","v":""},{"$f":"AW68&\"\"","v":""},{"$f":"BF68&\"\"","v":""}]
[null,"Ｅ　障害者の雇用の促進等に関する法律別表に掲げる種類別の身体障害者数"]
[null,"視覚障害者（第１号に該当する者）",null,null,null,null,null,null,null,null,null,null,null,null,null,null,null,null,null,null,"人",null,null,null,null,null,null,null,null,null,"人",null,null,null,null,null,null,null,null,null,null,null,"人",null,null,null,null,null,null,null,null,null,null,"人",null,null,null,null,null,null,null,null,null,null,"人"]
[null,"聴覚又は平衡機能障害者\n（第２号に該当する者）",null,null,null,null,null,null,null,null,null,null,null,null,null,null,null,null,null,null,"人",null,null,null,null,null,null,null,null,null,"人",null,null,null,null,null,null,null,null,null,null,null,"人",null,null,null,null,null,null,null,null,null,null,"人",null,null,null,null,null,null,null,null,null,null,"人"]
[null,"音声・言語・そしゃく機能障害者\n（第３号に該当する者）",null,null,null,null,null,null,null,null,null,null,null,null,null,null,null,null,null,null,"人",null,null,null,null,null,null,null,null,null,"人",null,null,null,null,null,null,null,null,null,null,null,"人",null,null,null,null,null,null,null,null,null,null,"人",null,null,null,null,null,null,null,null,null,null,"人"]
[null,"肢体不自由者（第４号に該当する者）",null,null,null,null,null,null,null,null,null,null,null,null,null,null,null,null,null,null,"人",null,null,null,null,null,null,null,null,null,"人",null,null,null,null,null,null,null,null,null,null,null,"人",null,null,null,null,null,null,null,null,null,null,"人",null,null,null,null,null,null,null,null,null,null,"人"]
[null,"内部障害者（第５号に該当する者）",null,null,null,null,null,null,null,null,null,null,null,null,null,null,null,null,null,null,"人",null,null,null,null,null,null,null,null,null,"人",null,null,null,null,null,null,null,null,null,null,null,"人",null,null,null,null,null,null,null,null,null,null,"人",null,null,null,null,null,null,null,null,null,null,"人"]
[]
[]
[]
[]
[null,""]

{"sheet":"産業分類マッピング表","index":3,"n_rows":101,"n_cols":4,"rows_kept":101,"cut":false,"hidden":true,"merged":[]}
[]
[null,"項番","産業分類コード（中分類）","産業中分類名称"]
[null,1,"01","農業"]
[null,2,"02","林業"]
[null,3,"03","漁業（水産養殖業を除く）"]
[null,4,"04","水産養殖業"]
[null,5,"05","鉱業、採石業、砂利採取業"]
[null,6,"06","総合工事業"]
[null,7,"07","職別工事業（設備工事業を除く）"]
[null,8,"08","設備工事業"]
[null,9,"09","食料品製造業"]
[null,10,"10","飲料・たばこ・飼料製造業"]
[null,11,"11","繊維工業"]
[null,12,"12","木材・木製品製造業（家具を除く）"]
[null,13,"13","家具・装備品製造業"]
[null,14,"14","パルプ・紙・紙加工品製造業"]
[null,15,"15","印刷・同関連業"]
[null,16,"16","化学工業"]
[null,17,"17","石油製品・石炭製品製造業"]
[null,18,"18","プラスチック製品製造業（別掲を除く）"]
[null,19,"19","ゴム製品製造業"]
[null,20,"20","なめし革・同製品・毛皮製造業"]
[null,21,"21","窯業・土石製品製造業"]
[null,22,"22","鉄鋼業"]
[null,23,"23","非鉄金属製造業"]
[null,24,"24","金属製品製造業"]
[null,25,"25","はん用機械器具製造業"]
[null,26,"26","生産用機械器具製造業"]
[null,27,"27","業務用機械器具製造業"]
[null,28,"28","電子部品・デバイス・電子回路製造業"]
[null,29,"29","電気機械器具製造業"]
[null,30,"30","情報通信機械器具製造業"]
[null,31,"31","輸送用機械器具製造業"]
[null,32,"32","その他の製造業"]
[null,33,"33","電気業"]
[null,34,"34","ガス業"]
[null,35,"35","熱供給業"]
[null,36,"36","水道業"]
[null,37,"37","通信業"]
[null,38,"38","放送業"]
[null,39,"39","情報サービス業"]
[null,40,"40","インターネット附随サービス業"]
[null,41,"41","映像・音声・文字情報制作業"]
[null,42,"42","鉄道業"]
[null,43,"43","道路旅客運送業"]
[null,44,"44","道路貨物運送業"]
[null,45,"45","水運業"]
[null,46,"46","航空運輸業"]
[null,47,"47","倉庫業"]
[null,48,"48","運輸に附帯するサービス業"]
[null,49,"49","郵便業（信書便事業を含む）"]
[null,50,"50","各種商品卸売業"]
[null,51,"51","繊維・衣服等卸売業"]
[null,52,"52","飲食料品卸売業"]
[null,53,"53","建築材料、鉱物・金属材料等卸売業"]
[null,54,"54","機械器具卸売業"]
[null,55,"55","その他の卸売業"]
[null,56,"56","各種商品小売業"]
[null,57,"57","織物・衣服・身の回り品小売業"]
[null,58,"58","飲食料品小売業"]
[null,59,"59","機械器具小売業"]
[null,60,"60","その他の小売業"]
[null,61,"61","無店舗小売業"]
[null,62,"62","銀行業"]
[null,63,"63","協同組織金融業"]
[null,64,"64","貸金業、非預金信用機関"]
[null,65,"65","金融商品取引業、商品先物取引業"]
[null,66,"66","補助的金融業等"]
[null,67,"67","保険業（保険媒介代理、保険サービス含む）"]
[null,68,"68","不動産取引業"]
[null,69,"69","不動産賃貸業・管理業"]
[null,70,"70","物品賃貸業"]
[null,71,"71","学術・開発研究機関"]
[null,72,"72","専門サービス業（他に分類されないもの）"]
[null,73,"73","広告業"]
[null,74,"74","技術サービス業（他に分類されないもの）"]
[null,75,"75","宿泊業"]
[null,76,"76","飲食店"]
[null,77,"77","持ち帰り・配達飲食サービス業"]
[null,78,"78","洗濯・理容・美容・浴場業"]
[null,79,"79","その他の生活関連サービス業"]
[null,80,"80","娯楽業"]
[null,81,"81","学校教育"]
[null,82,"82","その他の教育、学習支援業"]
[null,83,"83","医療業"]
[null,84,"84","保健衛生"]
[null,85,"85","社会保険・社会福祉・介護事業"]
[null,86,"86","郵便局"]
[null,87,"87","協同組合（他に分類されないもの）"]
[null,88,"88","廃棄物処理業"]
[null,89,"89","自動車整備業"]
[null,90,"90","機械等修理業（別掲を除く）"]
[null,91,"91","職業紹介・労働者派遣業"]
[null,92,"92","その他の事業サービス業"]
[null,93,"93","政治・経済・文化団体"]
[null,94,"94","宗教"]
[null,95,"95","その他のサービス業"]
[null,96,"96","外国公務"]
[null,97,"97","国家公務"]
[null,98,"98","地方公務"]
[null,99,"99","分類不能の産業"]